Cogmind - Beta 16.1 @@@ ROGUE MODE // 2026.01.11 @ 01:11:23 Player: szymekc Result: Establishing Free Derelict Territories! Performance ------------- Evolutions (9) 4500 Regions Visited (40) 8000 Robots Destroyed (538) 2690 Value Destroyed (24249) 24249 Prototype IDs (191) 3820 Alien Tech Used (6) 1200 Bonus (39588) 39588 TOTAL SCORE: 84047 Bonus ------- High Alert Combat Kills 3745 Follower Combat Kills 1690 Hunted by Unchained 2500 Destroyed Unchained 2000 Network Hubs Disabled 400 Aligned with FarCom 300 Met Data Miner 300 Met Zhirov 300 Met Warlord at Base 500 MAIN.C Attacked Warlord 500 Warlord Defense Kills 3320 Built Enhanced Grunts 300 Met R17 at Research 2000 Met Warlord at Research 2000 Destroyed MAIN.C Guards 500 Met MAIN.C 5000 Destroyed MAIN.C Shell 5000 Destroyed MAIN.C 10000 Met Warlord at Command 2000 Win 3000 Friendly Fire -5767 Cogmind --------- Core Integrity 1036/1600 Matter 300/300 Energy 340/340 System Corruption 5% Temperature Cool (0) Movement Flying (19) Location Free Derelict Territories Parts ------- > --- POWER (2) -------- Concept Zero-point Core Concept Zero-point Core > --- PROPULSION (8) --- Impulse Thruster Array Cooled Q-thruster Experimental Biomechanical Wings Experimental Biomechanical Wings Concept Fieldthrust Drive Concept Fieldthrust Drive > --- UTILITY (11) ----- Large Storage Unit Gravity Neutralizer Concept Weapon Articulator Experimental Core Analyzer Experimental Armor Integrity Analyzer Femtoactuators (fused) Improved Actuator Array Concept Reaction Jets (fused) Concept Phase Shift Module Graphene Brace Experimental Focal Shield > --- WEAPON (4) ------- Concept Deflector Sword > --- INVENTORY (15) --- Light Quantum Reactor Experimental Power Shielding Centrium Heavy Armor Plating Concept Beam Splitter Advanced Point Defense System High-powered Transdimensional Reconstructor Concept Plasma Driver Peak State ------------ > --- POWER ------------ Concept Zero-point Core Concept Zero-point Core > --- PROPULSION ------- Impulse Thruster Array Cooled Q-thruster Cooled Q-thruster Experimental Biomechanical Wings Experimental Biomechanical Wings Concept Fieldthrust Drive Concept Fieldthrust Drive > --- UTILITY ---------- Concept Antigrav Storage Unit Gravity Neutralizer Spectral Analyzer Zeronet Interface Concept Melee Reflex Suite Concept Weapon Articulator Experimental Core Analyzer Experimental Armor Integrity Analyzer Femtoactuators Concept Reaction Jets Concept Beam Splitter > --- WEAPON ----------- Concept Deflector Sword Sigix Broadsword Experimental Jetlance > --- INVENTORY -------- Light Quantum Reactor Light Quantum Reactor Experimental Surge Thruster Large Storage Unit Microactuators Improved Actuator Array Concept Phase Shift Module Concept Phase Shift Module Experimental Cloaking Device ID Mask Experimental Power Shielding Experimental Propulsion Shielding Improved Utility Shielding Graphene Brace Experimental Focal Shield Advanced Point Defense System Improved Hacking Suite Advanced System Restoration Module High-powered Transdimensional Reconstructor Compact HERF Cannon Concept Plasma Driver [Rating: 292] Favorites ----------- Power Graviton Reactor Engine Ion Engine Power Core Concept Zero-point Core Reactor Graviton Reactor Propulsion Improved Cesium-ion Thruster Treads Light Treads Leg Enhanced Biometal Leg Wheel Wheel Hover Unit Improved Airjet Flight Unit Improved Cesium-ion Thruster Utility Modified TNC Device Improved Sensor Array Storage Medium Storage Unit Processor Modified TNC Hackware Hacking Suite Protection Medium Regenerative Plating Weapon Nanosword Energy Gun Spread Laser Energy Cannon Heavy Plasma Cannon Ballistic Gun 8R-AWN's Boregun Ballistic Cannon Tri-rail Accelerator Launcher Mini Grenade Launcher Special Weapon Plasma Flamer Impact Weapon Impact Mace Slashing Weapon Nanosword Piercing Weapon Experimental Jetlance Special Melee Weapon Datajack Build | -11 -10 -10 -9 -9 -9 -8 -8 -7 -7 -7 -7 -7 -7 -6 -6 -6 -6 -6 -6 -6 -6 -5 -5 -5 -5 -5 -5 -4 -4 -4 -4 -4 -3 -3 -3 -3 -2 -2 -1 -1 ------- Run | Yrd Mat Min Mat Min Exi Min Mat Fac Was Fac Low Low Dat Pro Fac Was Fac Ext Cet Arc Hub Fac Was Fac Upp Upp War Pro Fac Upp Upp Zhi Pro Res Qua Frg Res Tes Acc Com Slots Evolved 18 | . . . 2 . . . 2 2 . . . . . . 2 . . . . . . 2 . . . . . . 2 . . . . 2 . . 2 . 2 . Power 1 | . . . . . . . . . . . . . . . . . . . . . . . . . . . . . . . . . . 1 . . . . . . Propulsion 6 | . . . 1 . . . 1 1 . . . . . . . . . . . . . . . . . . . . 1 . . . . 1 . . 1 . . . Utility 9 | . . . 1 . . . 1 1 . . . . . . 2 . . . . . . 2 . . . . . . 1 . . . . . . . . . 1 . Weapon 2 | . . . . . . . . . . . . . . . . . . . . . . . . . . . . . . . . . . . . . 1 . 1 . Parts Attached 309 | 7 6 2 26 4 14 15 29 30 2 4 . . . . 11 3 8 5 11 1 . 10 1 11 1 . 12 . 5 3 1 2 . 16 4 28 15 5 11 6 Power 33 | 1 2 . 4 1 2 1 1 3 . 1 . . . . 1 . . . 1 . . . . . . . 3 . 1 2 1 1 . 3 . 4 . . . . Engine 10 | 1 2 . 3 1 . . 1 2 . . . . . . . . . . . . . . . . . . . . . . . . . . . . . . . . Core 11 | . . . 1 . 2 . . 1 . 1 . . . . . . . . . . . . . . . . 1 . 1 1 1 . . . . 2 . . . . Reactor 12 | . . . . . . 1 . . . . . . . . 1 . . . 1 . . . . . . . 2 . . 1 . 1 . 3 . 2 . . . . Propulsion 85 | 2 1 . 12 . 4 5 12 11 . 1 . . . . 1 . 6 . 2 . . . 1 4 . . 3 . . . . . . 5 1 7 5 1 . 1 Treads 27 | 2 1 . 12 . 2 2 6 . . . . . . . . . . . 2 . . . . . . . . . . . . . . . . . . . . . Leg 5 | . . . . . 2 3 . . . . . . . . . . . . . . . . . . . . . . . . . . . . . . . . . . Wheel 2 | . . . . . . . 2 . . . . . . . . . . . . . . . . . . . . . . . . . . . . . . . . . Hover 5 | . . . . . . . . 5 . . . . . . . . . . . . . . . . . . . . . . . . . . . . . . . . Flight 46 | . . . . . . . 4 6 . 1 . . . . 1 . 6 . . . . . 1 4 . . 3 . . . . . . 5 1 7 5 1 . 1 Utility 134 | 2 1 . 5 1 3 5 11 14 1 2 . . . . 7 1 1 3 5 1 . 8 . 7 1 . 4 . 3 1 . 1 . 5 2 13 8 4 10 4 Device 61 | 2 . . 4 1 1 2 5 8 . 1 . . . . 1 . 1 . 1 . . 4 . 2 1 . 1 . 2 1 . . . 2 2 7 6 2 4 . Storage 9 | . 1 . 1 . . 1 . 1 . . . . . . . . . . . . . 1 . . . . . . . . . . . 1 . 1 1 . 1 . Processor 27 | . . . . . . . 1 3 1 . . . . . 4 1 . 2 . . . 2 . 2 . . 3 . . . . . . 1 . 3 . 1 3 . Hackware 18 | . . . . . . . 1 1 . 1 . . . . 2 . . 1 . 1 . 1 . 3 . . . . 1 . . . . 1 . . . 1 1 3 Protection 19 | . . . . . 2 2 4 1 . . . . . . . . . . 4 . . . . . . . . . . . . 1 . . . 2 1 . 1 1 Artifact . | . . . . . . . . . . . . . . . . . . . . . . . . . . . . . . . . . . . . . . . . . Weapon 57 | 2 2 2 5 2 5 4 5 2 1 . . . . . 2 2 1 2 3 . . 2 . . . . 2 . 1 . . . . 3 1 4 2 . 1 1 Energy Gun 15 | . 1 1 5 . . 2 3 . . . . . . . . . . . . . . . . . . . 2 . . . . . . . . 1 . . . . Energy Cannon 4 | . . . . . . . . . . . . . . . . . . . . . . . . . . . . . 1 . . . . 1 . . . . 1 1 Ballistic Gun 16 | 2 . . . 2 2 2 2 . . . . . . . 1 1 . . 3 . . . . . . . . . . . . . . . . 1 . . . . Ballistic Cannon 2 | . . . . . . . . . 1 . . . . . . 1 . . . . . . . . . . . . . . . . . . . . . . . . Launcher 7 | . . . . . 1 . . 2 . . . . . . . . . 2 . . . . . . . . . . . . . . . . . 2 . . . . Special Weapon 3 | . 1 1 . . . . . . . . . . . . . . . . . . . 1 . . . . . . . . . . . . . . . . . . Impact Weapon 2 | . . . . . . . . . . . . . . . . . . . . . . 1 . . . . . . . . . . . 1 . . . . . . Slashing Weapon 6 | . . . . . 2 . . . . . . . . . . . 1 . . . . . . . . . . . . . . . . 1 1 . 1 . . . Piercing Weapon 1 | . . . . . . . . . . . . . . . . . . . . . . . . . . . . . . . . . . . . . 1 . . . Special Melee Weapon 1 | . . . . . . . . . . . . . . . 1 . . . . . . . . . . . . . . . . . . . . . . . . . Unidentified Prototypes 60 | . . . 3 . 2 4 1 4 1 . . . . . 2 . 3 1 4 . . 1 1 2 . . 6 . . . . 3 . 3 3 5 6 1 4 . Parts Lost 45 | . 2 2 1 . 3 4 6 1 . . . . . . . . 2 2 . . . . . 1 1 . 2 . 3 . . . . 1 . 5 1 . . 8 Power 4 | . . . 1 . . . 1 . . . . . . . . . 1 . . . . . . . . . 1 . . . . . . . . . . . . . Propulsion 13 | . 1 . . . 2 2 2 . . . . . . . . . . 1 . . . . . 1 . . . . 1 . . . . 1 . 1 . . . 1 Utility 20 | . . . . . 1 2 3 1 . . . . . . . . 1 1 . . . . . . 1 . . . 1 . . . . . . 4 1 . . 4 Weapon 8 | . 1 2 . . . . . . . . . . . . . . . . . . . . . . . . 1 . 1 . . . . . . . . . . 3 Highest Loss Streak 6 | . 1 1 1 . 3 2 6 1 . . . . . . . . 1 1 . . . . . 1 1 . 2 . 1 . . . . 1 . 4 1 . . 4 To Critical Strikes 2 | . . . . . 2 . . . . . . . . . . . . . . . . . . . . . . . . . . . . . . . . . . . Average Backups 11 | 1 6 11 18 20 19 18 18 6 8 7 8 8 8 8 7 8 8 7 9 10 10 5 8 9 8 10 9 9 8 10 9 9 10 9 9 9 14 14 16 14 Power . | . . 1 . 1 1 . . . . . 1 1 1 . . 1 . . . 1 1 . . . 1 1 1 1 . 1 1 . . . . . . . . 1 Propulsion 1 | . 1 3 3 3 . 1 4 . 1 1 1 1 1 1 1 1 1 1 2 4 4 . . 2 1 2 1 2 . . . . . . . 2 . . 1 1 Utility 4 | . 2 4 5 5 4 6 7 3 4 3 3 3 3 3 2 1 1 1 1 1 1 2 4 3 2 4 3 4 5 6 6 6 7 6 4 2 10 10 12 8 Weapon 4 | 1 1 2 8 11 11 10 6 1 2 2 3 3 3 3 3 4 4 5 4 4 4 2 3 3 3 3 2 2 2 3 2 2 2 2 3 2 2 2 1 1 Tool/Special . | . . . . . . . . . . . . . . . . . . . . . . . . . . . . . . . . . . . . . . . . . Unused Backups 65 | . . . 11 1 5 1 5 4 1 . . . . . . . 2 . 2 . . . . 2 . . 1 . . . . . . 4 1 15 2 2 . 6 Power 7 | . . . 2 . 3 . . . . . . . . . . . . . . . . . . . . . . . . . . . . . . . . . . 2 Propulsion 9 | . . . 1 . 1 . 1 . . . . . . . . . . . 1 . . . . 2 . . . . . . . . . . . 3 . . . . Utility 34 | . . . 3 . 1 . 2 4 1 . . . . . . . 2 . 1 . . . . . . . 1 . . . . . . 3 . 9 2 2 . 3 Weapon 13 | . . . 4 1 . 1 2 . . . . . . . . . . . . . . . . . . . . . . . . . . 1 1 3 . . . . Tool/Special 2 | . . . 1 . . . . . . . . . . . . . . . . . . . . . . . . . . . . . . . . . . . . 1 Average Slot Usage (%) 92 | . 98 100 99 99 97 77 92 96 92 92 92 91 92 92 93 92 93 87 88 85 85 84 98 97 96 94 94 94 92 89 89 91 94 89 86 88 91 91 91 88 Engine 2 | . 14 14 7 2 4 . 3 1 . . . . . . . . . . . . . . . . . . . . . . . . . . . . . . . . Core 2 | . . . 3 8 6 8 . 2 . . . . . . . . . . . . . . . . . . . . . 2 . . . . . 1 8 8 8 8 Reactor 3 | . . . . . . 2 4 2 7 6 7 7 7 7 6 6 6 6 6 6 6 5 5 5 5 5 5 5 4 2 5 5 5 8 9 7 . . . . Treads 8 | . 26 28 33 32 22 3 15 . . . . . . . . . . . 9 13 13 . . . . . . . . . . . . . . . . . . . Leg 1 | . . . . . 10 25 13 . . . . . . . . . . . . . . . . . . . . . . . . . . . . . . . . . Flight 19 | . . . . . . . . 33 38 38 38 38 38 38 33 33 33 32 13 6 5 22 27 26 25 23 23 23 25 26 26 26 26 23 23 27 30 30 28 26 Device 11 | . 15 14 21 22 11 2 9 6 7 7 7 7 7 7 12 10 12 . . . . 5 11 12 17 23 13 11 9 10 10 10 10 8 9 17 17 15 16 22 Storage 6 | . 12 14 11 11 11 11 9 2 7 7 7 7 7 7 6 6 6 6 6 6 6 . 5 4 5 5 5 5 5 5 5 5 5 4 4 4 4 4 4 4 Processor 14 | . . . . . . . 3 12 15 15 15 15 15 15 22 27 25 25 28 25 20 25 17 17 17 17 26 29 26 26 26 26 26 19 19 16 17 19 19 12 Hackware 2 | . . . . . . . . 9 7 7 7 7 7 7 3 . . . . . 6 8 11 9 4 . . . 4 5 5 5 5 6 4 1 . . . 1 Protection 4 | . . . . . 10 3 9 4 . . . . . . . . . . 8 13 13 5 5 4 5 5 5 5 5 5 5 5 5 7 9 6 3 3 3 3 Energy Gun 2 | . 1 3 21 21 . 2 4 . . . . . . . . . . . . . . . . . . . . . . . . . . . . . . . . . Ballistic Gun 4 | . 26 18 . . 5 11 13 2 . . . . . . 1 . 1 4 9 12 13 . . 1 . . 7 5 3 . . . . . . . . . . . Slashing Weapon 4 | . . . . . 13 4 . 10 7 7 5 6 7 6 3 . 1 7 3 . . 4 5 4 5 5 1 5 5 5 5 5 5 4 3 3 7 8 8 7 Peak Build Rating 292 | 9 9 12 21 21 46 62 67 74 70 74 73 69 65 69 86 92 96 97 110 109 107 100 109 116 111 111 130 124 143 136 136 138 140 163 178 243 258 260 292 284 Average Rating 100 | 6 7 9 18 18 35 37 50 58 64 64 65 65 65 64 79 85 87 88 103 107 106 90 106 110 109 111 121 124 135 131 132 134 138 157 171 197 251 245 273 260 On Entrance 101 | . 9 7 12 21 18 43 56 49 64 65 65 65 65 65 65 86 86 88 94 108 107 102 99 109 110 111 111 124 124 132 132 132 138 140 163 178 232 251 251 283 Avg Prop Armor Cover (%) 2 | . . . 9 . 9 . 10 1 . . . . . . . . . . 1 . . . 1 1 . . . . 1 1 1 1 1 . . . . . . . Naked Turns . | . . . . . . . . . . . . . . . . . . . . . . . . . . . . . . . . . . . . . . . . . Heaviest Build 84 | 8 30 30 56 57 73 71 83 45 29 29 40 29 29 29 41 41 41 40 57 58 57 39 39 43 41 41 57 37 46 38 38 42 51 58 51 74 65 65 78 84 Greatest Support 160 | 40 40 40 60 60 60 90 90 45 30 30 42 30 30 30 42 42 45 45 160 160 160 39 51 51 55 55 55 43 55 47 39 51 59 71 64 64 68 68 80 88 Greatest Overweight (x) 8 | . 1 . 1 . 2 2 8 1 . . 1 . . . . . 1 1 1 . . 1 . . . . 1 . . . . . . . . 1 . . . . Average Overweight (x) . | . . . . . 1 . 2 . . . . . . . . . . . . . . . . . . . . . . . . . . . . . . . . . Largest Inventory Capacity 25 | 5 15 15 20 20 20 20 20 20 10 10 10 10 10 10 10 10 10 10 10 10 10 10 10 10 10 10 10 10 10 10 10 10 10 10 10 25 15 15 25 25 Average Capacity 12 | 5 14 15 18 20 20 20 20 6 10 10 10 10 10 10 10 10 10 9 10 10 10 5 10 9 10 10 10 10 10 10 10 10 10 10 10 10 14 15 21 20 Most Carried 23 | 2 9 13 20 20 20 20 20 15 10 10 10 10 10 10 10 10 10 10 10 10 10 10 9 10 10 10 10 9 10 10 10 10 10 10 10 23 15 15 21 23 Average Carried 12 | 1 6 11 18 19 19 19 19 6 9 9 9 9 10 9 9 9 9 9 9 10 10 5 8 9 8 10 9 9 8 9 9 9 10 9 9 9 14 14 16 15 Final Capacity 25 | 5 15 15 20 20 20 20 20 10 10 10 10 10 10 10 10 10 10 10 10 10 10 10 10 10 10 10 10 10 10 10 10 10 10 10 10 10 15 15 25 15 Final Carried 21 | 2 9 13 20 20 20 20 16 9 10 10 10 10 10 10 10 10 10 10 10 10 10 8 9 9 10 10 9 9 10 10 10 10 10 10 10 10 15 14 21 8 Class Distribution -------------------- 21% | Scout 18% | Mutant 16% | Sprinter 15% | Scavenger-Mutant 11% | Scavenger-Scout 5% | Ninja Dominant Class ---------------- Mutant | -10/Materials Mutant | -10/Mines Mutant | -9/Materials Mutant | -9/Mines Mutant | -9/Exiles Mutant | -8/Mines Scavenger-Mutant | -8/Materials Scout | -7/Factory Scout | -7/Waste Scout | -7/Factory Scout | -7/Lower Caves Scout | -7/Lower Caves Scout | -7/Data Miner Scout | -6/Proximity Caves Scout | -6/Factory Scout | -6/Waste Scout | -6/Factory Commander-Sprinter | -6/Extension Commander-Mutant | -6/Cetus Commander-Mutant | -6/Archives Scavenger-Mutant | -6/Hub_04(d) Scavenger-Scout | -5/Factory Scavenger-Scout | -5/Waste Scavenger-Scout | -5/Factory Scavenger-Scout | -5/Upper Caves Scout | -5/Upper Caves Scout | -5/Warlord Scavenger-Scout | -4/Proximity Caves Scavenger-Scout | -4/Factory Scavenger-Scout | -4/Upper Caves Scavenger-Scout | -4/Upper Caves Scavenger-Scout | -4/Zhirov Scavenger-Scout | -3/Proximity Caves Ninja | -3/Research Ninja | -3/Quarantine Sprinter | -3/Protoforge Sprinter | -2/Research Scout | -2/Testing Scout | -1/Access Sprinter | -1/Command Resources | -11 -10 -10 -9 -9 -9 -8 -8 -7 -7 -7 -7 -7 -7 -6 -6 -6 -6 -6 -6 -6 -6 -5 -5 -5 -5 -5 -5 -4 -4 -4 -4 -4 -3 -3 -3 -3 -2 -2 -1 -1 ----------- Run | Yrd Mat Min Mat Min Exi Min Mat Fac Was Fac Low Low Dat Pro Fac Was Fac Ext Cet Arc Hub Fac Was Fac Upp Upp War Pro Fac Upp Upp Zhi Pro Res Qua Frg Res Tes Acc Com Matter Collected 16197 | 303 272 67 376 118 560 323 1224 949 157 190 131 122 . 121 1187 153 929 900 472 404 331 345 . 648 50 76 1488 123 492 152 117 70 70 350 318 1378 376 125 449 281 Remotely . | . . . . . . . . . . . . . . . . . . . . . . . . . . . . . . . . . . . . . . . . . Salvage Created 29368 | 241 378 206 1174 292 496 217 1539 1111 59 539 112 174 . . 1443 265 1353 1771 522 538 680 577 . 762 . 94 1513 123 1040 37 . 91 79 524 1014 3016 2615 1122 1385 2266 Parts 1374 | 23 25 17 68 27 50 11 72 69 1 27 2 3 . . 72 4 44 68 31 39 24 24 . 50 . . 64 6 71 3 . 2 3 19 56 168 101 36 42 52 Haulers Intercepted 30 | . 2 . 4 . . . 3 2 . . . . . . 1 . 2 . . . 1 1 . . . . . . 1 . . . . 2 1 . 4 2 4 . Recyclers Shooed 16 | . 2 . 2 1 . . 3 . . . . . . . . . 2 2 . . 1 . . . . . . . 1 . . . . 1 . . . 1 . . Parts Field Recycled . | . . . . . . . . . . . . . . . . . . . . . . . . . . . . . . . . . . . . . . . . . Retrieved Matter . | . . . . . . . . . . . . . . . . . . . . . . . . . . . . . . . . . . . . . . . . . Parts Self-Destructed 15 | . . . . . . . . . . . 2 . . . . . . . . . . . . . . . . 8 . . 1 1 3 . . . . . . . Prevented 3 | . . . . . . . . . . . 3 . . . . . . . . . . . . . . . . . . . . . . . . . . . . . Parts Restored 3 | . . . . . . . . . . . . . . . . . . . . . . . . . . . . . . . . . . . . 3 . . . . Faulty 3 | . . . . . . . . . . . . . . . . . . . . . . . . . . . . . . . . . . . . 3 . . . . Kills | -11 -10 -10 -9 -9 -9 -8 -8 -7 -7 -7 -7 -7 -7 -6 -6 -6 -6 -6 -6 -6 -6 -5 -5 -5 -5 -5 -5 -4 -4 -4 -4 -4 -3 -3 -3 -3 -2 -2 -1 -1 ------- Run | Yrd Mat Min Mat Min Exi Min Mat Fac Was Fac Low Low Dat Pro Fac Was Fac Ext Cet Arc Hub Fac Was Fac Upp Upp War Pro Fac Upp Upp Zhi Pro Res Qua Frg Res Tes Acc Com Combat Hostiles Destroyed 350 | . 8 8 29 17 6 6 22 13 . 2 3 . . . 21 . 10 21 4 2 5 3 . 6 . . 27 1 11 . . . 1 1 10 43 32 10 13 15 Melee 126 | . . . . . 1 . . 2 . 2 . . . . 2 . . 3 . . . . . 1 . . . . 3 . . . 1 1 9 31 32 10 13 15 Guns 166 | . 7 5 29 17 . 4 21 5 . . 2 . . . 7 . 7 15 4 2 5 3 . 5 . . 17 1 7 . . . . . . 3 . . . . Cannons 17 | . . 3 . . . . . . . . 1 . . . 6 . 3 3 . . . . . . . . . . . . . . . . . 1 . . . . AOE 37 | . 1 . . . 5 2 1 6 . . . . . . 6 . . . . . . . . . . . 10 . 1 . . . . . . 5 . . . . Classes Destroyed 31 | 3 3 1 3 3 2 . 2 3 . . . 1 . . . . . 1 . . . . . . . . 2 1 1 . . . . . 1 3 1 . . . Worker 23 | 2 . . 1 . . . 4 2 . . . . . . 3 . . . . . 2 1 . 3 . . . . 1 . . . . 1 . 3 . . . . Builder 18 | . . 1 1 . . 2 . 4 . 1 . . . . 1 . . 1 . . 1 1 . 2 . . . . 1 . . . . . 1 1 . . . . Tunneler 6 | 5 . . . . . . . 1 . . . . . . . . . . . . . . . . . . . . . . . . . . . . . . . . Hauler 30 | . 2 . 4 . . . 3 2 . . . . . . 1 . 2 . . . 1 1 . . . . . . 1 . . . . 2 1 . 4 2 4 . Recycler 21 | 1 . . 1 1 . . 2 . . 4 . . . . 1 . 2 3 . . 2 1 . . . . . . . . . . . 1 . . . 1 . 1 Carrier 1 | . . . . . . . . 1 . . . . . . . . . . . . . . . . . . . . . . . . . . . . . . . . Minesweeper 1 | . . . . . . . . . . . . . . . . . . . . . . . . . . . . 1 . . . . . . . . . . . . Mechanic 1 | . . . . . . . . 1 . . . . . . . . . . . . . . . . . . . . . . . . . . . . . . . . Operator 23 | . . . . . . . 1 3 . 1 . . . . 2 . 1 . . 8 . . . 1 . . . . . . . . . 1 2 1 . 1 . 1 Drone 6 | . . . . . . . . . . . . . . . . . . . . . . . . . . . . . 1 . . . . . . 5 . . . . Turret 1 | . . . . . 1 . . . . . . . . . . . . . . . . . . . . . . . . . . . . . . . . . . . Watcher 50 | . . . 2 . . . 1 5 . 5 . . . . 6 . 4 1 . . . 2 . 3 . . . . 4 . . . . 3 3 1 7 . 1 2 Swarmer 53 | . 2 6 3 12 . . . 6 . . . . . . 3 . 1 . . . . . . . . . 4 . . . . . . . 1 . 14 . . 1 Grunt 120 | . 6 2 13 2 . 5 8 3 . . 2 . . . 5 . 8 9 . . 2 . . . . . 11 1 6 . . . 1 1 3 2 10 9 6 5 Brawler 8 | . . . 3 . . . 1 2 . . . . . . . . . 1 . . . . . . . . 1 . . . . . . . . . . . . . Duelist 7 | . . . . 1 . 1 1 . . . . . . . 1 . 1 . . . . . . . . . . . . . . . . . . . 1 . 1 . Protector 1 | . . . . . . . . . . . . . . . . . . . . . . . . . . . 1 . . . . . . . . . . . . . Researcher 3 | . . . . . . . . . . . . . . . . . . . . . . . . . . . . . . . . . . . 1 1 . 1 . . Sentry 59 | . . . 10 . . . 9 1 . . . . . . 5 . . 8 . 2 1 1 . 5 . . . . . . . . . . . 10 3 . 2 2 Demolisher 1 | . . . . 1 . . . . . . . . . . . . . . . . . . . . . . . . . . . . . . . . . . . . Hunter 17 | . . . . . . . 3 . . . 1 . . . . . . 2 . . 1 1 . . . . . . 2 . . . . . 2 3 1 1 . . Programmer 39 | . . . . . . . . 1 . 2 . . . . 7 . . . . . 1 1 . 1 . . 6 . 2 . . . . . 4 10 . . 1 3 Behemoth 1 | . . . . . . . . . . . . . . . . . . 1 . . . . . . . . . . . . . . . . . . . . . . Cetus Guard 4 | . . . . . . . . . . . . . . . . . . . 4 . . . . . . . . . . . . . . . . . . . . . S7 Guard 1 | . . . . . . . . . . . . . . . . . . . . . . . . . . . . . . . . . . . . . . . 1 . Hotshot 1 | . . . . . . . . . . . . . . . . . . . . . . . . . . . . . . . . . . . . 1 . . . . Decapitator 6 | . . . . . . . . . . . . . . . . . . . . . . . . . . . . . . . . . . . . 6 . . . . Immortal 4 | . . . . . . . . . . . . . . . . . . . . . . . . . . . . . . . . . . . . 4 . . . . Combat Programmer 2 | . . . . . . . . . . . . . . . . . . . . . . . . . . . . . . . . . . . . . . . . 2 Striker 3 | . . . . . . . . . . . . . . . . . . . . . . . . . . . . . . . . . . . . . 3 . . . Executioner 2 | . . . . . . . . . . . . . . . . . . . . . . . . . . . 2 . . . . . . . . . . . . . V-Series 2 | . . . . . . . . . . . . . . . . . . . . . . . . . . . . . . . . . . . . 2 . . . . Zionite 5 | . . . . . 5 . . . . . . . . . . . . . . . . . . . . . . . . . . . . . . . . . . . Decomposer 5 | . . . . . . . . . . . . 5 . . . . . . . . . . . . . . . . . . . . . . . . . . . . Packrat 1 | . . . . . . . . . . . . . . . . . . . . . . . . . . 1 . . . . . . . . . . . . . . Samaritan 2 | . . . . . . . . . . . . 1 . . . . . . . . . . . . . . . . . 1 . . . . . . . . . . Tinkerer 1 | . . . . . . . . . . . . . . . . . . . . . . . . . . . . . . . . . . . . 1 . . . . Assembled 6 | . . . . 1 5 . . . . . . . . . . . . . . . . . . . . . . . . . . . . . . . . . . . Thug 8 | . . . . . . . . . . . . . . . . . 4 . 2 . . . . . . . 2 . . . . . . . . . . . . . Savage 2 | . . . . . . . . . . . . . . . . . 2 . . . . . . . . . . . . . . . . . . . . . . . Butcher 1 | . . . . . . . . . . . . . . . . . . . . . . . . . . . 1 . . . . . . . . . . . . . Martyr 1 | . . . . . . . . . . . . . . . . 1 . . . . . . . . . . . . . . . . . . . . . . . . Guerrilla 1 | . . . . . . . . . . . . . . . . . . . . 1 . . . . . . . . . . . . . . . . . . . . Best Kill Streak 12 | 4 4 3 6 4 4 3 6 5 . 3 2 . . . 12 . 6 7 3 8 3 3 . 2 . . 9 1 3 . . . 1 3 4 5 7 11 4 8 Combat Bots Only 10 | . 4 3 5 4 4 3 6 3 . 1 2 . . . 8 . 6 5 3 2 2 2 . 2 . . 9 1 3 . . . 1 1 3 5 7 10 4 8 Max Kills in Single Turn 7 | 1 1 1 2 2 2 1 1 3 . 1 1 1 . . 3 1 5 2 1 1 1 2 . 2 . 1 7 1 2 1 . . 1 1 1 2 2 1 1 1 Gunslinging 1 | . . . . 1 . . . . . . . . . . . . . . . . . . . . . . 1 . . . . . . . . . . . . . Exploded 7 | . 1 . . . 2 1 1 3 . . . . . . 2 . . . . . . . . . . . 7 . 1 . . . . . . 2 . . . . Melee 2 | . . . . . 1 . . 1 . 1 . . . . 1 . . 1 . . . . . 1 . . . . 1 . . . 1 1 1 1 2 1 1 1 Uniques/NPCs Destroyed 9 | . . . . . 4 . . . . . . . . . . . . . 1 . . . . . . . . . . . . . . . . . . . 2 2 8R-AWN (-9/Exiles) EX-DEC (-9/Exiles) EX-HEX (-9/Exiles) EX-BIN (-9/Exiles) A7 (-6/Cetus) CY-PHR (-1/Access) CL-0N3 (-1/Access) MAIN.C Shell (-1/Command) MAIN.C (-1/Command) Combat | -11 -10 -10 -9 -9 -9 -8 -8 -7 -7 -7 -7 -7 -7 -6 -6 -6 -6 -6 -6 -6 -6 -5 -5 -5 -5 -5 -5 -4 -4 -4 -4 -4 -3 -3 -3 -3 -2 -2 -1 -1 -------- Run | Yrd Mat Min Mat Min Exi Min Mat Fac Was Fac Low Low Dat Pro Fac Was Fac Ext Cet Arc Hub Fac Was Fac Upp Upp War Pro Fac Upp Upp Zhi Pro Res Qua Frg Res Tes Acc Com Hostile Shots Fired 1725 | . 70 40 82 36 57 51 122 98 . 6 20 . . 1 50 . 35 67 4 5 39 11 . 5 10 1 36 . 120 . . . 16 2 90 266 63 124 21 177 Missed 886 | . 22 14 35 10 11 5 42 59 . 5 6 . . 1 22 . 12 39 4 2 9 6 . 4 7 . 18 . 60 . . . 10 1 56 140 51 106 10 119 Intercepted 9 | . . . . . . . . . . . . . . . . . . . . . . . . . . . . . . . . . . . . . . . . 9 Deflected 7 | . . . . . . . . . . . . . . . . . . . . . . . . . . . . . . . . . . . . . 1 4 . 2 Hits 839 | . 48 26 47 26 46 46 80 39 . 1 14 . . . 28 . 23 28 . 3 30 5 . 1 3 1 18 . 60 . . . 6 1 34 126 12 18 11 58 Melee 40 | . . . . 3 . 4 . . . . . . . . . . . . . . . . . . . . . . 6 . . . . . . 26 . . 1 . Projectile 799 | . 48 26 47 23 46 42 80 39 . 1 14 . . . 28 . 23 28 . 3 30 5 . 1 3 1 18 . 54 . . . 6 1 34 100 12 18 10 58 AOE 11 | . . . . 1 . . . . . . . . . . . . . . . . 1 . . . . . . . 1 . . . . . . . . . . 8 Critical Strikes 91 | . . . 1 1 23 . 5 3 . . . . . . . . 4 1 . 1 7 1 . . . . 2 . 6 . . . . . 2 28 . 1 1 4 Actively Blocked 32 | . . . . . . . . . . . . . . . . . . . . . . . . . . . . . 3 . . . . . . 28 . . . 1 Part Disruptions 4 | . . . 1 . . . . . . . . . . . . . . . . . . . . . . . . . . . . . . . . 1 . . . 2 Damage Taken 16850 | . 484 242 759 300 661 1007 1463 441 . 14 150 . . . 351 . 456 297 14 98 763 99 . 213 75 19 443 . 926 . . . 129 77 661 3607 188 214 281 2418 Core 2248 | . 61 22 73 38 76 178 103 67 . . 85 . . . 125 . 125 38 . . 21 . . 50 . . 95 . 149 . . . . . 11 320 24 23 52 512 Absorbed by Shields 433 | . . . . . 204 . 174 . . . . . . . . . . 41 14 . . . . . . . . . . . . . . . . . . . . . Reduced by Siege Mode 5 | . . . . . . . . . . . . . . . . . . . . . 5 . . . . . . . . . . . . . . . . . . . Redirected to Shielding 447 | . . . . . . . . . . . . . . . . . . . . . . . . . . . . . . . . . . . 51 109 . . . 287 Ignored by Resistances 737 | . . . . . . . 4 . . . . . . . . . . . . . . . . . . . . . . . . . . . 54 178 69 79 14 339 Regen/Repaired (Parts) 4725 | . . . . . . . 75 . . 240 . . . . 103 77 . . 23 47 43 242 . 18 22 2 110 37 148 75 65 . 78 21 482 2077 133 22 197 388 Core Remaining (%) 71 | 100 . 66 . . . 8 81 . . . . . . 78 . . . . . . 63 . . . . . . 85 . . . . 87 . . 54 . 96 . 64 Volleys Fired 1129 | 10 51 30 74 23 31 20 111 53 . 5 26 2 . 1 79 6 54 81 38 25 37 13 . 50 . . 84 24 74 1 4 . 20 3 12 76 . . 6 5 Largest 2 | 2 2 2 2 2 2 2 2 1 . 1 1 1 . 1 1 1 2 2 2 2 2 1 . 2 . . 2 1 1 1 1 . 1 1 1 2 . . 1 1 Hottest 160 | 40 100 120 130 130 60 130 160 49 . 30 60 60 . 60 60 60 70 70 70 70 70 30 . 70 . . 70 40 90 90 90 . 90 113 113 153 . . 140 94 Shots Fired 1622 | 20 95 49 148 47 40 36 222 53 . 5 26 2 . 1 78 6 77 95 50 46 73 13 . 52 . . 162 24 74 1 4 . 20 3 12 77 . . 6 5 Gun 1446 | 20 90 46 148 47 34 32 222 51 . 5 19 . . . 51 . 46 83 50 46 73 10 . 52 . . 158 24 73 . . . . . . 66 . . . . Cannon 142 | . . . . . . . . . . . 7 2 . 1 25 6 31 12 . . . . . . . . . . 1 1 4 . 20 3 12 6 . . 6 5 Launcher 23 | . . . . . 6 4 . 2 . . . . . . 2 . . . . . . . . . . . 4 . . . . . . . . 5 . . . . Special 11 | . 5 3 . . . . . . . . . . . . . . . . . . . 3 . . . . . . . . . . . . . . . . . . Kinetic 1227 | 20 79 25 . 4 34 20 184 51 . 5 26 2 . 1 76 6 77 95 50 46 73 10 . 52 . . 158 24 73 . . . . . . 36 . . . . Thermal 294 | . 5 3 148 43 . 12 30 . . . . . . . . . . . . . . . . . . . . . 1 1 4 . 20 3 12 6 . . 6 . Explosive 23 | . . . . . 6 4 . 2 . . . . . . 2 . . . . . . . . . . . 4 . . . . . . . . 5 . . . . Electromagnetic 75 | . 11 21 . . . . 8 . . . . . . . . . . . . . . . . . . . . . . . . . . . . 30 . . . 5 Robot Hit Streak 17 | 4 7 13 17 9 3 11 15 3 . . 4 . . . 4 16 17 13 9 11 17 7 . 3 . . 13 2 5 . . . 3 . . 9 . . . 9 Robot Miss Streak 13 | 3 4 4 13 6 4 3 4 2 . . 3 . . . 3 1 4 2 4 3 5 3 . 1 . . 3 3 3 . . . . . . 4 . . . . Penetration Max 2 | . . . . . 1 . . 2 . . . . . . 1 . 1 2 2 1 1 2 . 2 . . 1 . 1 . . . . . . . . . . . Secondary Targets 16 | . 2 1 4 2 . 1 1 . . . . . . . . . 1 . . . 1 . . . . . 3 . . . . . . . . . . . . . Max Gunslinging Chain 1 | . 1 1 1 1 . 1 1 . . . . . . . . . 1 . . . 1 . . . . . 1 . . . . . . . . . . . . . Shots Hit Robots 1441 | 10 51 21 130 40 64 33 158 39 1 21 8 6 . . 45 7 40 33 30 27 54 13 . 10 . 1 98 5 30 2 . 2 5 16 34 147 96 31 40 93 Core Hits 996 | 10 22 13 173 47 29 22 71 33 . 8 6 3 . . 42 3 43 41 22 19 27 8 . 20 . . 71 4 29 1 . 2 2 6 13 80 48 14 24 40 Critical Kills 95 | . . . . . 1 . . 6 . . . . . . 8 . 8 16 5 7 4 3 . 7 . . 16 1 11 . . . . . . 2 . . . . Critical Parts Destroyed 144 | 1 1 . . . 5 1 3 9 . . 1 . . . 8 . 9 15 10 7 6 5 . 10 . . 39 1 8 . . . . 2 2 1 . . . . Critical Strikes 315 | 1 1 . . . 11 1 3 20 . 3 1 . . . 19 . 17 34 18 14 10 9 . 19 . . 57 2 25 . . . 1 2 4 9 8 2 17 7 Destroy 249 | 1 1 . . . 6 1 3 18 . . 1 . . . 18 . 17 34 18 14 10 8 . 18 . . 57 2 18 . . . . . . 4 . . . . Blast 1 | . . . . . . . . . . . . . . . 1 . . . . . . . . . . . . . . . . . . . . . . . . . Smash 6 | . . . . . . . . . . . . . . . . . . . . . . . . 1 . . . . 1 . . . . 2 2 . . . . . Sever 37 | . . . . . 5 . . 2 . 3 . . . . . . . . . . . 1 . . . . . . 6 . . . 1 . 2 5 8 2 1 1 Impale 22 | . . . . . . . . . . . . . . . . . . . . . . . . . . . . . . . . . . . . . . . 16 6 Melee Attacks 1059 | . . . . . 56 9 1 80 1 44 21 12 . 2 25 1 19 19 7 . . 14 . 35 5 4 . 6 52 4 5 2 20 48 74 170 119 36 66 102 Impact 55 | . . . . . . . . . . . . . . . . . . . . . . . . 22 5 2 . . 5 . . . . 12 9 . . . . . Slashing 933 | . . . . . 56 9 1 80 1 44 21 12 . 2 24 1 19 19 7 . . 14 . 13 . 2 . 6 47 4 5 2 20 36 65 170 119 36 19 79 Piercing 70 | . . . . . . . . . . . . . . . . . . . . . . . . . . . . . . . . . . . . . . . 47 23 Sneak Attacks 97 | . . . . . 2 3 . 8 . 8 . 6 . . 2 1 1 7 7 . . 2 . 2 . 1 . 1 2 2 . . 1 3 4 14 8 3 7 2 Combat Hostiles 9 | . . . . . . . . . . 1 . . . . . . . 3 . . . . . . . . . . . . . . 1 . . . 2 . 2 . Follow-up Attacks 28 | . . . . . 5 . . . . . . . . . . . . 1 . . . . . . . . . . . . . . . 2 . . 6 4 5 5 Martial Strikes 84 | . . . . . . . . . . . . . . . . . . . . . . . . . . . . . . . . . . . . 32 30 4 15 3 Damage Inflicted 79002 | 150 672 311 1999 494 3389 1094 2947 3205 80 1486 268 639 . . 3893 465 3173 2846 1153 550 1696 991 . 1158 . 123 4308 240 2004 214 . 221 286 1144 3128 13180 8245 2802 3204 7244 Guns 16514 | 150 589 248 1964 468 228 387 2887 583 . . 117 . . . 770 . 603 1054 604 550 1677 333 . 592 . . 1830 44 276 . . . . . . 560 . . . . Cannons 3590 | . . . . . . . . . . . 151 . . . 975 395 1253 649 . . . . . . . . . . . . . . 32 . . 50 . . . 85 Explosions 7596 | . 69 . . . 304 429 56 404 . . . . . . 1206 . 938 . . . . . . 8 . . 2478 . 581 . . . . . . 1123 . . . . Melee 51141 | . . . . . 2857 278 . 2218 80 1486 . 639 . . 942 70 379 1143 549 . . 658 . 558 . 123 . 196 1147 214 . 221 254 1144 3128 11447 8245 2802 3204 7159 Ramming 121 | . 14 23 35 26 . . 4 . . . . . . . . . . . . . 19 . . . . . . . . . . . . . . . . . . . Kinetic 15973 | 150 495 146 . 63 228 208 2113 583 . . 268 . . . 1745 395 1856 1703 604 550 1677 333 . 592 . . 1830 44 276 . . . . . . 114 . . . . Thermal 5690 | . 69 40 1964 405 . 179 677 . . . . . . . 755 . 938 . . . . . . . . . . . 581 . . . 32 . . 50 . . . . Explosive 5081 | . . . . . 304 429 . 296 . . . . . . 451 . . . . . . . . . . . 2478 . . . . . . . . 1123 . . . . Electromagnetic 996 | . 94 102 . . . . 153 108 . . . . . . . . . . . . . . . 8 . . . . . . . . . . . 446 . . . 85 Impact 854 | . . . . . . . . . . . . . . . . . . . . . . . . 125 . 123 . . 70 . . . . 361 175 . . . . . Slashing 46668 | . . . . . 2857 278 . 2218 80 1486 . 639 . . 942 70 379 1143 549 . . 658 . 433 . . . 196 1077 214 . 221 254 783 2953 11447 8245 2802 833 5911 Piercing 3619 | . . . . . . . . . . . . . . . . . . . . . . . . . . . . . . . . . . . . . . . 2371 1248 Highest Corruption 15 | . 1 1 3 3 3 5 . 1 . . . . . . 5 5 5 5 5 . 2 . 7 9 9 9 9 1 . . . . . . 2 15 5 7 1 5 Average Corruption 4 | . 1 1 2 3 3 4 . 1 . . . . . . 4 5 5 5 3 . 2 . 7 7 9 9 1 1 . . . . . . 1 7 5 6 1 1 Corruption Purged 6 | . . . . . . . . 1 . . . . . . . . . . 5 . . . . . . . . . . . . . . . . . . . . . Corruption Blocked . | . . . . . . . . . . . . . . . . . . . . . . . . . . . . . . . . . . . . . . . . . Effects 313 | . 1 10 30 15 35 3 . 4 . . . . . . 15 4 26 27 2 . 1 . . 21 4 5 1 1 . . . . . . 5 69 18 7 4 5 Message Errors 75 | . . 5 9 2 9 1 . 3 . . . . . . 4 1 5 6 . . 1 . . 4 2 1 . . . . . . . . 2 12 5 2 1 . Matter Fused 78 | . . . 7 3 10 . . 1 . . . . . . 1 . 8 11 1 . . . . 6 1 . . 1 . . . . . . 3 16 5 1 1 2 Heat Flow Errors 20 | . . . . . 3 . . . . . . . . . 1 2 2 2 . . . . . 2 . . 1 . . . . . . . . 3 4 . . . Energy Discharges 47 | . . 2 4 2 5 . . . . . . . . . 3 1 2 4 1 . . . . 3 . 4 . . . . . . . . . 12 1 1 1 1 Parts Rejected 7 | . . . 1 . . . . . . . . . . . 1 . 1 1 . . . . . . . . . . . . . . . . . 3 . . . . Parts Fused 4 | . . . 1 . 1 . . . . . . . . . . . . . . . . . . . . . . . . . . . . . . 1 . . . 1 Data Loss (minor) 37 | . . 1 3 6 3 1 . . . . . . . . 2 . 5 2 . . . . . 3 1 . . . . . . . . . . 8 1 . 1 . Data Loss (major) 12 | . . . 1 1 1 1 . . . . . . . . 2 . . . . . . . . . . . . . . . . . . . . 2 2 2 . . Misfires 7 | . 1 1 2 1 . . . . . . . . . . . . 1 . . . . . . . . . . . . . . . . . . 1 . . . . Alerts 10 | . . . . . 1 . . . . . . . . . . . 1 1 . . . . . 2 . . . . . . . . . . . 3 . 1 . 1 Misdirections 7 | . . . . . . . . . . . . . . . . . . . . . . . . . . . . . . . . . . . . 7 . . . . Weapon Failures 9 | . . 1 2 . 2 . . . . . . . . . 1 . 1 . . . . . . 1 . . . . . . . . . . . 1 . . . . Overload Shots . | . . . . . . . . . . . . . . . . . . . . . . . . . . . . . . . . . . . . . . . . . Overflow Damage 7552 | . . . . . 139 72 . 665 66 415 . 277 . . 419 . 318 284 55 . . 212 . . . 113 19 82 243 29 . . 67 267 557 1570 705 330 440 208 Projectiles 89 | . . . . . . . . . . . . . . . 58 . 29 . . . . . . . . . . . . . . . 2 . . . . . . . Explosions 368 | . . . . . 4 10 . 5 . . . . . . 145 . 127 . . . . . . . . . 19 . 22 . . . . . . 36 . . . . Melee 7095 | . . . . . 135 62 . 660 66 415 . 277 . . 216 . 162 284 55 . . 212 . . . 113 . 82 221 29 . . 65 267 557 1534 705 330 440 208 Knockbacks 7 | . . . 1 . . . . . . . . . . . 4 . 1 . . . 1 . . . . . . . . . . . . . . . . . . . Impact 2 | . . . 1 . . . . . . . . . . . . . . . . . 1 . . . . . . . . . . . . . . . . . . . Kinetic 5 | . . . . . . . . . . . . . . . 4 . 1 . . . . . . . . . . . . . . . . . . . . . . . Secondary . | . . . . . . . . . . . . . . . . . . . . . . . . . . . . . . . . . . . . . . . . . Self-Inflicted Damage 525 | . . . . . 39 168 . 58 . . . . . . . . . . . . . . . . . . . . . . . . . . . 260 . . . . Shots 14 | . . . . . 1 4 . 2 . . . . . . . . . . . . . . . . . . . . . . . . . . . 7 . . . . Rammed 16 | . 3 4 4 1 . . 1 . . . . . . . . . . . . . 3 . . . . . . . . . . . . . . . . . . . Targets Rammed 16 | . 3 4 4 1 . . 1 . . . . . . . . . . . . . 3 . . . . . . . . . . . . . . . . . . . Kicked . | . . . . . . . . . . . . . . . . . . . . . . . . . . . . . . . . . . . . . . . . . Crushed . | . . . . . . . . . . . . . . . . . . . . . . . . . . . . . . . . . . . . . . . . . Highest Temperature 388 | . 40 180 21 72 246 369 388 140 105 197 148 176 87 134 285 223 226 257 15 126 81 12 120 161 8 17 213 100 180 67 67 . 177 217 12 231 277 29 199 52 Average Temperature 48 | . 14 52 14 34 107 167 72 38 40 60 42 59 45 61 35 41 27 50 5 45 18 7 65 43 5 12 70 41 33 32 32 . 48 53 5 68 33 4 71 19 Received Heat Transfer 2374 | . 141 48 288 12 . 324 366 66 . . . . . . 72 . 39 63 . . 153 18 . . 12 9 . . 172 . . . 30 9 21 315 36 54 27 99 Effects 6 | . . . . . . 2 1 . . . . . . . 2 . . . . . . . . . . . . . . . . . . . . . 1 . . . Energy Bleed 3 | . . . . . . 1 1 . . . . . . . . . . . . . . . . . . . . . . . . . . . . . 1 . . . Interference 2 | . . . . . . . . . . . . . . . 2 . . . . . . . . . . . . . . . . . . . . . . . . . Matter Decay 1 | . . . . . . 1 . . . . . . . . . . . . . . . . . . . . . . . . . . . . . . . . . . Siege Activations 3 | . . . . . . . . . . . . . . . . . . . . 1 2 . . . . . . . . . . . . . . . . . . . Total Turns 67 | . . . . . . . . . . . . . . . . . . . . 44 23 . . . . . . . . . . . . . . . . . . . Longest Duration 44 | . . . . . . . . . . . . . . . . . . . . 44 20 . . . . . . . . . . . . . . . . . . . Martial Activations . | . . . . . . . . . . . . . . . . . . . . . . . . . . . . . . . . . . . . . . . . . Shielding Activations . | . . . . . . . . . . . . . . . . . . . . . . . . . . . . . . . . . . . . . . . . . Robots Disrupted 1 | . . . . . . . . . . . . . . . . . . . . . . . . . . . . . . . . . . . . 1 . . . . Combat Hostiles 1 | . . . . . . . . . . . . . . . . . . . . . . . . . . . . . . . . . . . . 1 . . . . Robots Corrupted 9 | . . . . . . . . . . . . . . . . . . . . . . . . . . . . . . . . . . 3 3 3 . . . . Combat Hostiles 4 | . . . . . . . . . . . . . . . . . . . . . . . . . . . . . . . . . . . 1 3 . . . . Parts Fried 16 | . . 2 . . . . 2 . . . 1 . . . . . . . . . . . . . . . . . . . . . . 1 1 8 1 . . . Impact Corruptions 12 | . . . . . . . . . . . . . . . . . . . . . . . . . . 1 . . . . . . . 8 3 . . . . . Robots Melted . | . . . . . . . . . . . . . . . . . . . . . . . . . . . . . . . . . . . . . . . . . Combat Hostiles . | . . . . . . . . . . . . . . . . . . . . . . . . . . . . . . . . . . . . . . . . . Parts Melted 7 | . . . . . . . 4 . . . . . . . . . . . . 1 1 . . . . . 1 . . . . . . . . . . . . . Heat Transferred 6482 | . 50 240 2460 500 . 220 1475 . . . . . . . 400 . 700 . . . . . . . . . . . 350 . . . 50 . . 37 . . . . Parts Sabotaged . | . . . . . . . . . . . . . . . . . . . . . . . . . . . . . . . . . . . . . . . . . Parts Stolen . | . . . . . . . . . . . . . . . . . . . . . . . . . . . . . . . . . . . . . . . . . Parts Stripped . | . . . . . . . . . . . . . . . . . . . . . . . . . . . . . . . . . . . . . . . . . Power Chain Reactions 3 | . 1 . . . . . 1 1 . . . . . . . . . . . . . . . . . . . . . . . . . . . . . . . . Alert | -11 -10 -10 -9 -9 -9 -8 -8 -7 -7 -7 -7 -7 -7 -6 -6 -6 -6 -6 -6 -6 -6 -5 -5 -5 -5 -5 -5 -4 -4 -4 -4 -4 -3 -3 -3 -3 -2 -2 -1 -1 ------- Run | Yrd Mat Min Mat Min Exi Min Mat Fac Was Fac Low Low Dat Pro Fac Was Fac Ext Cet Arc Hub Fac Was Fac Upp Upp War Pro Fac Upp Upp Zhi Pro Res Qua Frg Res Tes Acc Com Maximum Alert Level 4 | . . . 2 1 . . 1 3 1 . . . . . 3 1 2 3 2 1 2 1 . . . . . . 2 . . . . . 1 3 4 3 3 2 Low Security (%) 46 | 100 100 100 35 44 . 100 77 23 . 100 . . . . 82 8 24 . . 37 10 . 100 100 . . . . 77 . . . . 100 50 23 . . . . Level 1 24 | . . . 62 55 . . 22 20 99 . . . . . . 91 30 37 31 62 35 100 . . . . . . 4 . . . . . 49 14 . . . 63 Level 2 18 | . . . 1 . . . . 27 . . . . . . 7 . 45 56 68 . 53 . . . . . . . 17 . . . . . . 46 5 . 94 36 Level 3 6 | . . . . . . . . 29 . . . . . . 9 . . 6 . . . . . . . . . . . . . . . . . 16 32 100 5 . Level 4 3 | . . . . . . . . . . . . . . . . . . . . . . . . . . . . . . . . . . . . . 61 . . . Level 5 . | . . . . . . . . . . . . . . . . . . . . . . . . . . . . . . . . . . . . . . . . . High Security . | . . . . . . . . . . . . . . . . . . . . . . . . . . . . . . . . . . . . . . . . . Max Security . | . . . . . . . . . . . . . . . . . . . . . . . . . . . . . . . . . . . . . . . . . Peak Influence 1406 | 15 92 87 439 276 . 78 256 885 241 133 . . . . 842 290 694 779 551 248 495 362 115 194 . . . . 609 . . . . 85 341 1039 1406 894 711 483 Initial 740 | . . 4 . 131 . . 7 73 241 133 . . . . . 290 133 277 361 143 65 238 115 73 . . . . . . . . . . . 164 589 740 530 317 Average 307 | 3 19 22 222 195 . 48 148 507 220 66 . . . . 187 239 350 491 435 208 357 298 113 142 . . . . 146 . . . . 21 191 445 1145 766 568 385 Influence Increases 18044 | 40 316 252 1072 375 . 181 781 1519 . 308 145 . . 60 1338 . 1380 1049 351 275 1082 325 . 421 . 45 540 40 1136 . . 5 50 339 700 1572 1216 234 451 446 Destroy 0b10 Robot/C 7600 | . 160 160 660 320 . 120 440 440 . 40 60 . . . 420 . 420 580 160 80 340 60 . 120 . . 520 20 200 . . . 20 20 220 820 640 100 160 300 Destroy 0b10 Robot/NC 950 | 40 10 5 55 5 . 10 55 90 . 55 . . . . 70 . 45 35 10 40 45 30 . 45 . . 5 5 40 . . 5 . 40 35 55 55 20 25 20 Destroy Leader 1370 | . 24 30 196 50 . 20 168 94 . 30 10 . . . 124 . 72 44 . . 76 36 . 56 . . . . 40 . . . . 10 28 32 122 24 40 44 Allied During Kill 1306 | . . . 70 . . . . 6 . . . . . . . . 223 328 160 120 399 . . . . . . . . . . . . . . . . . . . Trap Triggered on 0b10 300 | . . . . . . . . 70 . 30 . . . . 90 . 10 . . . 10 10 . . . . . . 40 . . . . 10 30 . . . . . Successful Hack 1169 | . 37 . 61 . . . 61 97 . 49 . . . . 21 . 47 6 . . 32 10 . 107 . . . . 142 . . . . 157 151 21 . 24 82 64 Select Force Hacks 140 | . 60 . 30 . . . . . . . . . . . . . . . . . 50 . . . . . . . . . . . . . . . . . . . Disable Machine 1425 | . . 30 . . . 15 . 165 . . . . . . 300 . 240 . . 30 90 15 . 45 . . . . 180 . . . . . 60 195 15 15 30 . Anti-Garrison Action 200 | . . . . . . . . . . . . . . . . . . . . . . . . . . . . . . . . . . . . 200 . . . . Destroy Structure 824 | . 10 12 . . . 16 12 107 . 14 . . . . 88 . 83 11 6 5 40 14 . 48 . . . . 104 . . . . 42 56 24 39 6 69 18 Partial Spotted 660 | . . . . . . . . 75 . 60 . . . . 75 . 45 30 15 . . 15 . . . . . . 75 . . . . 60 60 45 45 15 45 . Lose Combat Pursuer 2100 | . 15 15 . . . . 45 375 . 30 75 . . 60 150 . 195 15 . . . 135 . . . 45 15 15 315 . . . 30 . 60 180 300 30 . . Influence Decreases 17599 | 40 304 264 735 586 126 160 639 991 500 442 187 15 . 60 508 640 1003 970 639 445 783 483 224 368 158 45 254 326 527 296 191 127 50 339 408 816 947 667 838 498 Entered New Map 5435 | . . 8 . 206 126 . 14 90 450 58 22 4 . . . 540 57 290 285 215 123 249 214 32 59 . . 286 . 226 61 122 . . . 128 459 577 354 180 Time Decay 9328 | 40 259 236 522 380 . 120 565 571 50 374 165 11 . 60 348 100 416 410 254 160 350 214 10 326 89 45 234 40 288 70 130 5 50 260 408 628 478 90 334 238 Lost Part 420 | . 20 20 10 . . 40 60 10 . . . . . . . . 20 20 . . . . . 10 10 . 20 . 30 . . . . 10 . 50 10 . . 80 Lost Ally 803 | . . . 53 . . . . 20 . 10 . . . . 10 . 210 100 100 70 160 20 . . . . . . 30 . . . . 10 . 10 . . . . Purge Threat 1613 | . 25 . 150 . . . . 300 . . . . . . 150 . 300 150 . . 150 . . . . . . . 179 . . . . 59 . . . . 150 . Squads Dispatched 112 | . 5 . 3 . . . 3 14 . 8 . . . . 9 . 4 1 . . 4 7 . 2 . . . . 9 . . . 1 8 4 9 2 6 3 10 Investigation 27 | . 2 . 1 . . . 1 2 . 5 . . . . 2 . . . . . 1 3 . . . . . . 3 . . . . 4 . 1 . . 1 1 Extermination 34 | . . . . . . . . 6 . 3 . . . . 3 . 2 . . . 1 1 . 1 . . . . 2 . . . . . 4 5 . 1 2 3 Reinforcement 43 | . 3 . 2 . . . 2 3 . . . . . . 4 . 2 . . . 2 3 . 1 . . . . 4 . . . 1 4 . 1 2 3 . 6 Assault 6 | . . . . . . . . 3 . . . . . . . . . 1 . . . . . . . . . . . . . . . . . 2 . . . . Garrison 2 | . . . . . . . . . . . . . . . . . . . . . . . . . . . . . . . . . . . . . . 2 . . Intercept . | . . . . . . . . . . . . . . . . . . . . . . . . . . . . . . . . . . . . . . . . . Searches Triggered . | . . . . . . . . . . . . . . . . . . . . . . . . . . . . . . . . . . . . . . . . . Unchained Authorized 6 | . . . . . . . . . . . . . . . . . 1 . . . 1 1 . . . . . . . . . . . . . . . 1 2 . Construction Impeded 4 | . . . . . . . . 1 . . . . . . . . . . . . . . . 1 . . . . 1 . . . 1 . . . . . . . Haulers Reinforced 9 | . . . . . . . . 1 . . . . . . 1 . 2 . . . . 1 . . . . . . 1 . . . . 2 . . 1 . . . Active Scanning Responses . | . . . . . . . . . . . . . . . . . . . . . . . . . . . . . . . . . . . . . . . . . Cargo Convoy Interrupts 2 | . . . . . . . . . . . . . . . 1 . 1 . . . . . . . . . . . . . . . . . . . . . . . Stealth | -11 -10 -10 -9 -9 -9 -8 -8 -7 -7 -7 -7 -7 -7 -6 -6 -6 -6 -6 -6 -6 -6 -5 -5 -5 -5 -5 -5 -4 -4 -4 -4 -4 -3 -3 -3 -3 -2 -2 -1 -1 --------- Run | Yrd Mat Min Mat Min Exi Min Mat Fac Was Fac Low Low Dat Pro Fac Was Fac Ext Cet Arc Hub Fac Was Fac Upp Upp War Pro Fac Upp Upp Zhi Pro Res Qua Frg Res Tes Acc Com Distress Signals 47 | . 3 . 5 . . . 3 3 . . . . . . 4 . 2 1 2 . . 3 . . . . . 1 1 . . . 1 12 . . 3 1 . 2 Communications Jammed 34 | . . . . . . . . 1 . . . . . . . . . . . . . . . . . . . . . . . . . . 33 . . . . . Distress Signals 32 | . . . . . . . . . . . . . . . . . . . . . . . . . . . . . . . . . . . 32 . . . . . Times Spotted 837 | . 24 9 43 15 30 7 36 47 . 7 4 4 . 4 40 . 32 29 6 13 28 18 5 8 3 3 68 1 46 . . . 11 17 22 68 79 75 15 20 Peak Tracking Total 42 | . 7 3 8 3 9 4 5 7 . 2 1 4 . 3 10 . 7 7 5 2 4 10 5 2 3 3 14 1 10 . . . 7 4 4 7 9 42 17 9 Tactical Retreats 91 | . 2 1 . . 12 . 3 12 . 1 4 . . 2 6 . 7 1 . . . 5 . . . 1 1 1 7 . . . 2 . 4 6 10 2 1 . Traps | -11 -10 -10 -9 -9 -9 -8 -8 -7 -7 -7 -7 -7 -7 -6 -6 -6 -6 -6 -6 -6 -6 -5 -5 -5 -5 -5 -5 -4 -4 -4 -4 -4 -3 -3 -3 -3 -2 -2 -1 -1 ------- Run | Yrd Mat Min Mat Min Exi Min Mat Fac Was Fac Low Low Dat Pro Fac Was Fac Ext Cet Arc Hub Fac Was Fac Upp Upp War Pro Fac Upp Upp Zhi Pro Res Qua Frg Res Tes Acc Com Traps Triggered 41 | . 1 . 3 . . . . 7 . . . . . . 2 . 1 4 . . . 5 . 3 . . . . . . . . . 1 2 11 . 1 . . Indirectly . | . . . . . . . . . . . . . . . . . . . . . . . . . . . . . . . . . . . . . . . . . Trap Hack Attempts . | . . . . . . . . . . . . . . . . . . . . . . . . . . . . . . . . . . . . . . . . . Triggered . | . . . . . . . . . . . . . . . . . . . . . . . . . . . . . . . . . . . . . . . . . Disarmed . | . . . . . . . . . . . . . . . . . . . . . . . . . . . . . . . . . . . . . . . . . Reprogrammed 4 | . . . . . . . 4 . . . . . . . . . . . . . . . . . . . . . . . . . . . . . . . . . Reused 30 | . . . . . . . . 7 . 3 . . . . 9 . 1 . . . 1 1 . . . . . . 4 . . . . 1 3 . . . . . Traps Reconfigurated 109 | . . . . . . . . 8 . 12 . . . . 21 . 14 2 . . 12 1 . 11 . . . . 7 . . . . 17 4 . . . . . Traps Extracted . | . . . . . . . . . . . . . . . . . . . . . . . . . . . . . . . . . . . . . . . . . Installed . | . . . . . . . . . . . . . . . . . . . . . . . . . . . . . . . . . . . . . . . . . Triggered 30 | . . . . . . . . 7 . 3 . . . . 9 . 1 . . . 1 1 . . . . . . 4 . . . . 1 3 . . . . . Machines | -11 -10 -10 -9 -9 -9 -8 -8 -7 -7 -7 -7 -7 -7 -6 -6 -6 -6 -6 -6 -6 -6 -5 -5 -5 -5 -5 -5 -4 -4 -4 -4 -4 -3 -3 -3 -3 -2 -2 -1 -1 ---------- Run | Yrd Mat Min Mat Min Exi Min Mat Fac Was Fac Low Low Dat Pro Fac Was Fac Ext Cet Arc Hub Fac Was Fac Upp Upp War Pro Fac Upp Upp Zhi Pro Res Qua Frg Res Tes Acc Com Machines Disabled 114 | . . 2 . . 13 1 . 11 . . . . . . 20 . 16 1 . 2 6 1 . 3 . . 2 1 12 . . . 2 . 4 13 1 1 2 . Max in Single Turn 11 | . . 2 . . 2 1 . 4 . . . . . . 4 . 9 1 . 1 2 1 . 2 . . 1 1 11 . . . 1 . 1 1 1 1 2 . Garrison Access 14 | . . . . . . . 1 4 . 1 . . . . 1 . 1 . . . . . . . . . . . 1 . . . . 1 1 1 1 . 1 . Network Hub 2 | . . . . . . . . . . . . . . . . . . . . . 2 . . . . . . . . . . . . . . . . . . . Machines Repaired . | . . . . . . . . . . . . . . . . . . . . . . . . . . . . . . . . . . . . . . . . . Machines Dismantled . | . . . . . . . . . . . . . . . . . . . . . . . . . . . . . . . . . . . . . . . . . Machines Sabotaged 1 | . . . . . . . . . . . . . . . . . . . . . 1 . . . . . . . . . . . . . . . . . . . Overloaded Fab Kills . | . . . . . . . . . . . . . . . . . . . . . . . . . . . . . . . . . . . . . . . . . Hacking | -11 -10 -10 -9 -9 -9 -8 -8 -7 -7 -7 -7 -7 -7 -6 -6 -6 -6 -6 -6 -6 -6 -5 -5 -5 -5 -5 -5 -4 -4 -4 -4 -4 -3 -3 -3 -3 -2 -2 -1 -1 --------- Run | Yrd Mat Min Mat Min Exi Min Mat Fac Was Fac Low Low Dat Pro Fac Was Fac Ext Cet Arc Hub Fac Was Fac Upp Upp War Pro Fac Upp Upp Zhi Pro Res Qua Frg Res Tes Acc Com Machines Accessed 213 | . 7 . 13 . 1 . 10 24 . 23 . 1 4 . 17 . 12 8 . . 6 6 . 11 1 . 1 1 12 . . 4 1 13 12 4 1 5 8 7 Terminals 120 | . 5 . 10 . . . 6 10 . 10 . . . . 8 . 8 7 . . 6 1 . 5 . . . 1 7 . . . 1 7 10 3 . 2 6 7 Fabricators 16 | . . . . . . . . 4 . 2 . . . . 2 . 1 . . . . 2 . 1 . . . . 1 . . . . 1 . . . 1 1 . Repair Stations 11 | . . . . . . . 1 1 . 3 . . . . 2 . . . . . . 1 . 1 . . . . 1 . . . . . 1 . . . . . Recycling Units 18 | . 2 . 2 . . . . 3 . 2 . . . . 2 . . 1 . . . 2 . 2 . . . . . . . . . 2 . . . . . . Scanalyzers 17 | . . . 1 . . . 2 2 . 3 . . . . 1 . 1 . . . . . . 2 . . . . 2 . . . . 2 . . . 1 . . Garrison Access 19 | . . . . . . . 1 4 . 3 . . . . 2 . 2 . . . . . . . . . . . 1 . . . . 1 1 1 1 1 1 . Total Hacks 633 | . 23 . 34 . 1 . 42 46 . 52 . 1 31 . 44 . 23 15 . . 11 15 . 57 1 . 1 5 60 . . 17 1 39 39 9 2 14 24 26 Successful 331 | . 14 . 26 . 1 . 26 25 . 19 . 1 31 . 21 . 9 4 . . 5 7 . 28 1 . 1 5 31 . . 17 1 19 17 3 . 5 7 7 Failed 302 | . 9 . 8 . . . 16 21 . 33 . . . . 23 . 14 11 . . 6 8 . 29 . . . . 29 . . . . 20 22 6 2 9 17 19 Catastrophic 51 | . 1 . 1 . . . . 3 . 5 . . . . 3 . 2 1 . . 1 1 . 4 . . . . 5 . . . . 5 4 3 2 2 3 5 Database Lockouts . | . . . . . . . . . . . . . . . . . . . . . . . . . . . . . . . . . . . . . . . . . Manual 197 | . 18 . 11 . 1 . 16 14 . 16 . . . . 8 . 9 7 1 . 5 9 . 18 . . 1 . 29 . . . . 4 14 4 . 1 3 8 Terminals 372 | . 16 . 27 . . . 26 24 . 21 . . . . 22 . 16 13 . . 11 3 . 28 . . . 5 44 . . . 1 29 36 6 . 3 15 26 Fabricators 41 | . . . . . . . . 5 . 2 . . . . 5 . 1 . . . . 5 . 6 . . . . 3 . . . . 1 . . . 5 8 . Repair Stations 26 | . . . . . . . 2 2 . 7 . . . . 3 . . . . . . 1 . 6 . . . . 3 . . . . . 2 . . . . . Recycling Units 47 | . 7 . 3 . . . . 7 . 5 . . . . 6 . . 2 . . . 6 . 6 . . . . . . . . . 5 . . . . . . Scanalyzers 64 | . . . 4 . . . 12 3 . 10 . . . . 5 . 3 . . . . . . 11 . . . . 9 . . . . 2 . . . 5 . . Garrison Access 31 | . . . . . . . 2 5 . 7 . . . . 3 . 3 . . . . . . . . . . . 1 . . . . 2 1 3 2 1 1 . Terminal Hacks 155 | . 4 . 14 . 1 . 8 8 . . . 1 31 . 5 . 5 2 . . 4 . . 6 1 . 1 5 13 . . 17 1 11 8 1 . 1 3 4 Record 21 | . . . . . . . . . . . . . 11 . . . . . . . . . . . . . . 5 . . . 5 . . . . . . . . Part Schematic 15 | . . . . . . . . . . . . . 10 . . . . . . . . . . . . . . . 1 . . 4 . . . . . . . . Robot Schematic 7 | . . . . . . . . . . . . . 7 . . . . . . . . . . . . . . . . . . . . . . . . . . . Robot Analysis 7 | . . . . . . . 1 . . . . . . . . . . . . . . . . . . . . . . . . 4 . 1 1 . . . . . Prototype ID Bank 25 | . . . 6 . . . . 1 . . . . 3 . 1 . 1 . . . 1 . . . . . . . 2 . . 4 . 2 2 . . . 1 1 Open Door 6 | . . . . . . . . . . . . 1 . . . . 1 . . . . . . . 1 . 1 . . . . . 1 . . . . . . 1 Branch Access Points 4 | . . . 1 . . . . . . . . . . . . . 1 . . . . . . . . . . . 1 . . . . 1 . . . . . . Emergency Access Points 1 | . . . . . . . . . . . . . . . . . . . . . . . . . . . . . . . . . . 1 . . . . . . Terminal Index 8 | . 2 . 1 . . . 1 . . . . . . . 1 . . . . . . . . . . . . . 1 . . . . 1 1 . . . . . Fabricator Index 1 | . . . . . . . . . . . . . . . . . . . . . . . . . . . . . 1 . . . . . . . . . . . Repair Station Index 1 | . . . . . . . . 1 . . . . . . . . . . . . . . . . . . . . . . . . . . . . . . . . Scanalyzer Index 3 | . . . . . . . 1 . . . . . . . . . . . . . . . . 1 . . . . 1 . . . . . . . . . . . Alert Level 1 | . . . . . . . . . . . . . . . 1 . . . . . . . . . . . . . . . . . . . . . . . . . Unreport Threat 13 | . 1 . 1 . . . . 2 . . . . . . 1 . 2 1 . . 1 . . . . . . . 2 . . . . 1 . . . . 1 . Locate Traps 14 | . . . . . . . 1 2 . . . . . . . . . 1 . . 2 . . 1 . . . . 3 . . . . 2 1 . . . . 1 Reprogram Traps 1 | . . . . . . . 1 . . . . . . . . . . . . . . . . . . . . . . . . . . . . . . . . . Recall Extermination 1 | . . . . . . . . . . . . . . . . . . . . . . . . 1 . . . . . . . . . . . . . . . . Recall Reinforcements 1 | . . . . . . . . . . . . . . . 1 . . . . . . . . . . . . . . . . . . . . . . . . . Hauler Manifests 3 | . . . . . . . 1 . . . . . . . . . . . . . . . . . . . . . . . . . . . . . . 1 1 . Registered Components 5 | . . . 1 . . . . 1 . . . . . . . . . . . . . . . 1 . . . . . . . . . 1 1 . . . . . Registered Prototypes 3 | . . . . . . . . . . . . . . . . . . . . . . . . 1 . . . . . . . . . 1 1 . . . . . Zone Layout 11 | . 1 . 4 . . . 2 1 . . . . . . . . . . . . . . . 1 . . . . 1 . . . . . 1 . . . . . Proto ID Catalog 2 | . . . . . 1 . . . . . . . . . . . . . . . . . . . . . . . . . . . . . . 1 . . . . Disengage Seal 1 | . . . . . . . . . . . . . . . . . . . . . . . . . . . . . . . . . . . . . . . . 1 Fabricator Hacks 19 | . . . . . . . . 4 . 2 . . . . 3 . . . . . . 2 . 4 . . . . 1 . . . . 1 . . . 1 1 . Network Status 6 | . . . . . . . . 2 . 2 . . . . . . . . . . . . . . . . . . . . . . . 1 . . . 1 . . Load Schematic 8 | . . . . . . . . . . . . . . . 2 . . . . . . 2 . 2 . . . . 1 . . . . . . . . . 1 . Build 5 | . . . . . . . . 2 . . . . . . 1 . . . . . . . . 2 . . . . . . . . . . . . . . . . Repair Station Hacks 11 | . . . . . . . 2 1 . 3 . . . . 2 . . . . . . . . 1 . . . . 2 . . . . . . . . . . . Scan Component 7 | . . . . . . . 1 1 . 2 . . . . 1 . . . . . . . . 1 . . . . 1 . . . . . . . . . . . Repair 4 | . . . . . . . 1 . . 1 . . . . 1 . . . . . . . . . . . . . 1 . . . . . . . . . . . Recycling Unit Hacks 15 | . 2 . 1 . . . . 2 . 2 . . . . 2 . . 1 . . . 1 . 2 . . . . . . . . . 2 . . . . . . Retrieve Components 15 | . 2 . 1 . . . . 2 . 2 . . . . 2 . . 1 . . . 1 . 2 . . . . . . . . . 2 . . . . . . Scanalyzer 38 | . . . 4 . . . 7 1 . 6 . . . . 3 . 2 . . . . . . 6 . . . . 5 . . . . 1 . . . 3 . . Insert Component 16 | . . . . . . . 3 1 . 3 . . . . 1 . 1 . . . . . . 3 . . . . 1 . . . . 1 . . . 2 . . Analyze 12 | . . . . . . . 3 . . 3 . . . . 1 . 1 . . . . . . 2 . . . . 1 . . . . . . . . 1 . . Retrieve Study 10 | . . . 4 . . . 1 . . . . . . . 1 . . . . . . . . 1 . . . . 3 . . . . . . . . . . . Garrison Access Hacks 12 | . . . . . . . 1 4 . 1 . . . . 1 . 1 . . . . . . . . . . . 1 . . . . 1 1 . . . 1 . Seal Access 12 | . . . . . . . 1 4 . 1 . . . . 1 . 1 . . . . . . . . . . . 1 . . . . 1 1 . . . 1 . Unauthorized Hacks 81 | . 8 . 7 . . . 8 5 . 5 . . . . 5 . 1 1 . . 1 4 . 9 . . . . 9 . . . . 3 8 2 . . 2 3 Terminals 56 | . 5 . 6 . . . 8 2 . 2 . . . . 1 . 1 1 . . 1 . . 6 . . . . 8 . . . . 1 8 1 . . 2 3 Track 2 | . . . . . . . . 1 . . . . . . . . . . . . . . . 1 . . . . . . . . . . . . . . . . Assimilate 9 | . . . . . . . . . . 1 . . . . 1 . 1 1 . . . . . . . . . . 3 . . . . 1 . 1 . . . . Botnet 17 | . 2 . 1 . . . 2 1 . 1 . . . . . . . . . . . . . 2 . . . . 2 . . . . . 1 . . . 2 3 Operators 4 | . . . . . . . 1 . . . . . . . . . . . . . . . . 1 . . . . 1 . . . . . 1 . . . . . Skim 23 | . 3 . 5 . . . 5 . . . . . . . . . . . . . . . . 2 . . . . 2 . . . . . 6 . . . . . Sabotage 1 | . . . . . . . . . . . . . . . . . . . . . 1 . . . . . . . . . . . . . . . . . . . Fabricators 6 | . . . . . . . . 1 . . . . . . 1 . . . . . . 2 . 1 . . . . 1 . . . . . . . . . . . Prioritize 2 | . . . . . . . . 1 . . . . . . . . . . . . . . . 1 . . . . . . . . . . . . . . . . Recompile 4 | . . . . . . . . . . . . . . . 1 . . . . . . 2 . . . . . . 1 . . . . . . . . . . . Repair Stations 2 | . . . . . . . . . . . . . . . 1 . . . . . . 1 . . . . . . . . . . . . . . . . . . Patch 2 | . . . . . . . . . . . . . . . 1 . . . . . . 1 . . . . . . . . . . . . . . . . . . Recycling Units 16 | . 3 . 1 . . . . 2 . 3 . . . . 2 . . . . . . 1 . 2 . . . . . . . . . 2 . . . . . . Reject 11 | . 1 . . . . . . 2 . 2 . . . . 2 . . . . . . 1 . 2 . . . . . . . . . 1 . . . . . . Mask 2 | . . . . . . . . . . 1 . . . . . . . . . . . . . . . . . . . . . . . 1 . . . . . . Tunnel 3 | . 2 . 1 . . . . . . . . . . . . . . . . . . . . . . . . . . . . . . . . . . . . . Scanalyzers . | . . . . . . . . . . . . . . . . . . . . . . . . . . . . . . . . . . . . . . . . . Garrison Access 1 | . . . . . . . . . . . . . . . . . . . . . . . . . . . . . . . . . . . . 1 . . . . Jam 1 | . . . . . . . . . . . . . . . . . . . . . . . . . . . . . . . . . . . . 1 . . . . Data Cores Recovered 12 | . . . . . . . . 2 . 1 . . . . 1 . . . . . . . . 1 . . . . . . . . . 2 2 1 . 1 . 1 Used 5 | . . . . . . . . 1 . 1 . . . . . . . . . . . . . 1 . . . . . . . . . . . . . 1 . 1 Hacking Detections 162 | . 5 . 11 . . . 9 19 . 21 . . . . 14 . 10 6 . . 6 3 . 8 . . . . 10 . . . . 11 9 3 1 4 6 6 Full Trace Events 9 | . . . . . . . 1 1 . 5 . . . . . . . . . . . . . . . . . . . . . . . . . . . . 1 1 Feedback Events 1 | . . . . . . . . . . . . . . . . . . . . . . . . . . . . . . . . . . . . . . . 1 . Corruption 1 | . . . . . . . . . . . . . . . . . . . . . . . . . . . . . . . . . . . . . . . 1 . Feedback Blocked . | . . . . . . . . . . . . . . . . . . . . . . . . . . . . . . . . . . . . . . . . . Robot Schematics Acquired 55 | . . . . . . . . . . . . . 7 . . . . . . . . . . . . . . . . . . . . . 2 3 . 2 41 . Robots Built . | . . . . . . . . . . . . . . . . . . . . . . . . . . . . . . . . . . . . . . . . . Authchips . | . . . . . . . . . . . . . . . . . . . . . . . . . . . . . . . . . . . . . . . . . Time . | . . . . . . . . . . . . . . . . . . . . . . . . . . . . . . . . . . . . . . . . . Total Robot Build Rating . | . . . . . . . . . . . . . . . . . . . . . . . . . . . . . . . . . . . . . . . . . Part Schematics Acquired 34 | . . . . . . . 1 . . . . . 10 . 1 . 1 . . . . . . 2 . . . . 2 . . 4 . . 4 6 . 3 . . Parts Built 5 | . . . . . . . . 2 . . . . . . 1 . . . . . . . . 2 . . . . . . . . . . . . . . . . Authchips 3 | . . . . . . . . . . . . . . . 1 . . . . . . . . 2 . . . . . . . . . . . . . . . . Time 374 | . . . . . . . . 145 . . . . . . 102 . . . . . . . . 127 . . . . . . . . . . . . . . . . Total Part Build Rating 34 | . . . . . . . . 13 . . . . . . 8 . . . . . . . . 13 . . . . . . . . . . . . . . . . Part Studies Acquired 10 | . . . 4 . . . 1 . . . . . . . 1 . . . . . . . . 1 . . . . 3 . . . . . . . . . . . Parts Repaired 4 | . . . . . . . 1 . . 1 . . . . 1 . . . . . . . . . . . . . 1 . . . . . . . . . . . Time 286 | . . . . . . . 108 . . 56 . . . . 54 . . . . . . . . . . . . . 68 . . . . . . . . . . . Parts Recycled . | . . . . . . . . . . . . . . . . . . . . . . . . . . . . . . . . . . . . . . . . . Recycled Matter . | . . . . . . . . . . . . . . . . . . . . . . . . . . . . . . . . . . . . . . . . . Retrieved Matter . | . . . . . . . . . . . . . . . . . . . . . . . . . . . . . . . . . . . . . . . . . Retrieved Components 76 | . 20 . 10 . . . . 5 . 11 . . . . 4 . . 10 . . . . . 3 . . . . . . . . . 13 . . . . . . Parts Scanalyzed 7 | . . . . . . . 2 . . 1 . . . . . . . . . . . . . 2 . . . . 1 . . . . . . . . 1 . . Part Schematics Acquired 7 | . . . . . . . 1 . . . . . . . 1 . 1 . . . . . . 2 . . . . 1 . . . . . . . . 1 . . Parts Damaged 3 | . . . . . . . 1 . . 1 . . . . . . . . . . . . . . . . . . . . . . . . . . . 1 . . Bothacking | -11 -10 -10 -9 -9 -9 -8 -8 -7 -7 -7 -7 -7 -7 -6 -6 -6 -6 -6 -6 -6 -6 -5 -5 -5 -5 -5 -5 -4 -4 -4 -4 -4 -3 -3 -3 -3 -2 -2 -1 -1 ------------ Run | Yrd Mat Min Mat Min Exi Min Mat Fac Was Fac Low Low Dat Pro Fac Was Fac Ext Cet Arc Hub Fac Was Fac Upp Upp War Pro Fac Upp Upp Zhi Pro Res Qua Frg Res Tes Acc Com Used RIF Installer . | . . . . . . . . . . . . . . . . . . . . . . . . . . . . . . . . . . . . . . . . . Robots Hacked 3 | . . . . . . . . . . . . . . . 1 . . . . . . 2 . . . . . . . . . . . . . . . . . . Non-combat 3 | . . . . . . . . . . . . . . . 1 . . . . . . 2 . . . . . . . . . . . . . . . . . . Combat . | . . . . . . . . . . . . . . . . . . . . . . . . . . . . . . . . . . . . . . . . . Robot Hacks Applied 3 | . . . . . . . . . . . . . . . 1 . . . . . . 2 . . . . . . . . . . . . . . . . . . parse_system 1 | . . . . . . . . . . . . . . . . . . . . . . 1 . . . . . . . . . . . . . . . . . . find_chute 2 | . . . . . . . . . . . . . . . 1 . . . . . . 1 . . . . . . . . . . . . . . . . . . Relay Couplers Released 3 | . . . . . . . . 1 . . . . . . . . . . . . . . . . . . . . . . . . . . . . 2 . . . Machine Destruction 3 | . . . . . . . . 1 . . . . . . . . . . . . . . . . . . . . . . . . . . . . 2 . . . Fabnet Peak Effective % . | . . . . . . . . . . . . . . . . . . . . . . . . . . . . . . . . . . . . . . . . . Robots Rewired 11 | . . . . . . . . . . . . . . . . . . 10 . . . 1 . . . . . . . . . . . . . . . . . . Allies Hacked 1 | . . . . . . . . . . . . . . . . . 1 . . . . . . . . . . . . . . . . . . . . . . . Hacks Repelled . | . . . . . . . . . . . . . . . . . . . . . . . . . . . . . . . . . . . . . . . . . Allies | -11 -10 -10 -9 -9 -9 -8 -8 -7 -7 -7 -7 -7 -7 -6 -6 -6 -6 -6 -6 -6 -6 -5 -5 -5 -5 -5 -5 -4 -4 -4 -4 -4 -3 -3 -3 -3 -2 -2 -1 -1 -------- Run | Yrd Mat Min Mat Min Exi Min Mat Fac Was Fac Low Low Dat Pro Fac Was Fac Ext Cet Arc Hub Fac Was Fac Upp Upp War Pro Fac Upp Upp Zhi Pro Res Qua Frg Res Tes Acc Com Total Allies 65 | . . 3 . . . . . . . 1 . . . . 1 20 1 28 5 . . 1 . . . . . . 3 . . . . 1 . 1 . . . . Largest Group 20 | . . 3 3 . . . . . . 1 . . . . 1 20 19 20 20 16 10 1 . . . . . . 2 . . . . 1 . 1 . . . . Highest-Rated Group 956 | . . 40 40 . . . . . . 26 . . . . 10 781 731 719 956 761 635 49 . . . . . . 36 . . . . 45 . 45 . . . . Highest-Rated Ally 159 | . . 16 16 . . . . . . 26 . . . . 10 50 47 159 159 96 96 49 . . . . . . 26 . . . . 45 . 45 . . . . Total Orders 7 | . . . . . . . . . . . . . . . . . 2 . 1 1 1 . . . . . . . 1 . . . . . . 1 . . . . STAY 7 | . . . . . . . . . . . . . . . . . 2 . 1 1 1 . . . . . . . 1 . . . . . . 1 . . . . Ally Attacks 383 | . . . 39 . . . . 21 . . . . . . . . 74 86 52 28 81 2 . . . . . . . . . . . . . . . . . . Total Damage 9434 | . . . 483 . . . . 1083 . . . . . . . . 1838 1807 885 783 2478 77 . . . . . . . . . . . . . . . . . . Kills 65 | . . . 6 . . . . 8 . . . . . . . . 12 13 7 3 16 . . . . . . . . . . . . . . . . . . . Allies Corrupted 1 | . . . . . . . . . . . . . . . . . 1 . . . . . . . . . . . . . . . . . . . . . . . Allies Melted 2 | . . . . . . . . . . . . . . . . . . . . 1 . . . . . . . . . . . . . . . . 1 . . . Turrets Deployed 1 | . . . . . . . . 1 . . . . . . . . . . . . . . . . . . . . . . . . . . . . . . . . Intel | -11 -10 -10 -9 -9 -9 -8 -8 -7 -7 -7 -7 -7 -7 -6 -6 -6 -6 -6 -6 -6 -6 -5 -5 -5 -5 -5 -5 -4 -4 -4 -4 -4 -3 -3 -3 -3 -2 -2 -1 -1 ------- Run | Yrd Mat Min Mat Min Exi Min Mat Fac Was Fac Low Low Dat Pro Fac Was Fac Ext Cet Arc Hub Fac Was Fac Upp Upp War Pro Fac Upp Upp Zhi Pro Res Qua Frg Res Tes Acc Com Active Infowar (turns) 22936 | 105 1151 948 142 765 11 . . 1736 101 864 701 159 20 163 924 219 1008 986 545 320 783 451 23 733 221 192 873 276 817 151 277 66 637 948 1010 2171 1230 180 741 288 Optics 14485 | . . . . . . . . . . . . . . . 924 219 949 757 545 320 783 389 . . . . 807 276 817 151 277 66 637 948 1010 2171 1230 180 741 288 Sensors 10947 | . . . . . . . . 798 99 845 631 159 20 163 873 150 940 95 . . . 377 23 723 221 192 421 276 664 148 277 66 559 902 588 482 . 92 163 . Zeronet 575 | . . . . . . . . . . . . . . . . . . . . . . . . . . . . . . . . . . . . . . . 539 36 Terrain 195 | 105 90 . . . . . . . . . . . . . . . . . . . . . . . . . . . . . . . . . . . . . . . Seismic 3128 | 23 1151 948 142 765 11 . . 53 . . . . . . . . . . . . . . . . . . . . . . . . . . . . 35 . . . T.N.C. 16044 | . . . . . . . . 1736 101 864 701 159 20 163 924 219 970 986 545 320 783 451 23 733 221 192 873 276 817 151 277 66 637 948 1010 878 . . . . Cloaking 1 | . . . . . . . . . . . . . . . . . . . . . . . . . . . . . . . . . . . . . . . 1 . Jamming 2619 | . . . . . . . . 62 . . . . . . . . . . . . . . . . . . . . . . . . . 475 611 1471 . . . . Robot Analysis Total 102 | . . . . . . . 1 . . . . . . . . . . . . . . . . . . . . . . . . 4 . . 1 . . . 96 . Derelict Logs Recovered 11 | . . 1 . 2 . . . . . . 1 1 . 1 . . . . . . . . . . 3 1 . . . 1 . . . . . . . . . . Drone Launches . | . . . . . . . . . . . . . . . . . . . . . . . . . . . . . . . . . . . . . . . . . Drone Recoveries . | . . . . . . . . . . . . . . . . . . . . . . . . . . . . . . . . . . . . . . . . . Exploration | -11 -10 -10 -9 -9 -9 -8 -8 -7 -7 -7 -7 -7 -7 -6 -6 -6 -6 -6 -6 -6 -6 -5 -5 -5 -5 -5 -5 -4 -4 -4 -4 -4 -3 -3 -3 -3 -2 -2 -1 -1 ------------- Run | Yrd Mat Min Mat Min Exi Min Mat Fac Was Fac Low Low Dat Pro Fac Was Fac Ext Cet Arc Hub Fac Was Fac Upp Upp War Pro Fac Upp Upp Zhi Pro Res Qua Frg Res Tes Acc Com Turns Passed 29106 | 199 1151 948 1975 881 1756 245 1883 1737 101 864 701 159 20 163 924 219 1008 986 545 320 783 451 23 733 221 192 873 276 817 151 277 66 637 948 1010 2171 1230 180 741 541 Spaces Moved 45518 | 95 560 514 1026 485 717 98 909 3912 318 2754 888 489 84 514 2413 209 2674 1334 322 121 286 1022 75 1571 701 597 1173 723 1746 468 610 159 1060 2639 1890 3399 2988 747 2019 1209 Core 2 | 2 . . . . . . . . . . . . . . . . . . . . . . . . . . . . . . . . . . . . . . . . Treads 3596 | 93 560 514 1026 485 328 5 24 . . . . . . . . . . . 154 121 286 . . . . . . . . . . . . . . . . . . . Legs 1001 | . . . . . 389 93 519 . . . . . . . . . . . . . . . . . . . . . . . . . . . . . . . . . Wheels 365 | . . . . . . . 365 . . . . . . . . . . . . . . . . . . . . . . . . . . . . . . . . . Hover 467 | . . . . . . . . 467 . . . . . . . . . . . . . . . . . . . . . . . . . . . . . . . . Flight 40087 | . . . . . . . 1 3445 318 2754 888 489 84 514 2413 209 2674 1334 168 . . 1022 75 1571 701 597 1173 723 1746 468 610 159 1060 2639 1890 3399 2988 747 2019 1209 Fastest Speed 6 | 50 160 160 160 160 160 106 106 23 23 23 23 23 23 23 23 23 14 17 11 160 160 17 17 17 19 19 23 23 17 26 29 29 26 26 21 6 10 14 8 12 Average Speed 39 | 157 167 160 161 160 203 126 149 27 23 23 23 23 23 23 23 23 24 27 90 160 160 29 26 26 26 27 28 28 28 27 29 29 27 27 27 21 14 14 14 16 Slowest Speed 320 | 160 240 160 200 160 260 260 320 102 23 23 88 23 23 23 23 23 93 95 160 160 160 95 29 32 28 28 96 29 31 29 29 29 29 28 32 88 17 15 15 20 Overloaded Moves 297 | . . . . . . . . . . . . . . . . . 15 133 28 . . 5 17 3 3 4 9 3 14 . . . . . 1 36 . . 3 23 Propulsion Burnouts . | . . . . . . . . . . . . . . . . . . . . . . . . . . . . . . . . . . . . . . . . . Robots Hopped 216 | . . . . . . . . 24 . 18 . . . . 8 . 36 4 . . . 19 . 13 . . 4 . 17 . 1 . 1 20 17 4 16 3 4 7 Potential Cave-ins . | . . . . . . . . . . . . . . . . . . . . . . . . . . . . . . . . . . . . . . . . . Cave-ins Triggered . | . . . . . . . . . . . . . . . . . . . . . . . . . . . . . . . . . . . . . . . . . Teleports 4 | . . . . . . . . . . . . . . . . . . . . . . . . . . . . . . . . . . . 2 2 . . . . Exploration Rate (%) 65 | 4 92 90 94 80 91 21 81 74 95 68 78 67 70 67 52 88 44 84 58 79 31 24 66 31 87 63 86 69 33 64 83 64 74 71 97 38 77 87 30 34 Regions Visited 40 Branch Regions 24 Pre-discovered Areas 16 | . 2 . 4 . . . 2 . . . . 1 1 1 . . . . . . . . . . . . . 1 . 1 . 3 . . . . . . . . Known Exits Taken 27 | . . . 1 . . . 1 . . 1 1 1 1 1 . . 1 1 1 1 1 . . 1 1 1 1 1 1 1 1 1 1 1 1 1 1 1 . . Unknown Exits Taken 7 | 1 1 1 . 1 1 1 . . . . . . . . . . . . . . . . . . . . . . . . . . . . . . . . 1 . Scrap Searched 19 | . . 2 . 2 . . . . . . 3 . . 1 . . . . . . . . . . 3 . . . . 2 2 . 4 . . . . . . . Spaces Dug 312 | . 4 . . . 8 3 1 38 . 13 23 8 . 2 11 . 16 5 . . . 5 . 22 5 1 2 2 27 2 5 . 14 20 22 8 13 2 24 6 Terrain Destroyed 985 | . 10 12 . . 33 23 12 108 . 16 34 8 . 4 97 . 139 6 1 4 20 5 . 23 5 1 212 4 56 3 9 . 27 23 31 12 13 2 26 6 Melee 263 | . . . . . . 3 1 38 . 13 21 6 . 2 7 . 7 2 . . . 5 . 20 5 1 . 2 25 2 5 . 14 20 20 8 13 2 15 6 Projectile 138 | . 4 . . . 3 . . 1 . 2 11 2 . 2 9 . 20 3 . 4 20 . . 3 . . 7 . . 1 4 . 13 3 11 4 . . 11 . AOE 566 | . 6 12 . . 30 20 11 69 . . . . . . 78 . 109 . . . . . . . . . 203 . 28 . . . . . . . . . . . Terrain Rammed . | . . . . . . . . . . . . . . . . . . . . . . . . . . . . . . . . . . . . . . . . . Walls Destroyed . | . . . . . . . . . . . . . . . . . . . . . . . . . . . . . . . . . . . . . . . . . Machines Disabled . | . . . . . . . . . . . . . . . . . . . . . . . . . . . . . . . . . . . . . . . . . Actions | -11 -10 -10 -9 -9 -9 -8 -8 -7 -7 -7 -7 -7 -7 -6 -6 -6 -6 -6 -6 -6 -6 -5 -5 -5 -5 -5 -5 -4 -4 -4 -4 -4 -3 -3 -3 -3 -2 -2 -1 -1 --------- Run | Yrd Mat Min Mat Min Exi Min Mat Fac Was Fac Low Low Dat Pro Fac Was Fac Ext Cet Arc Hub Fac Was Fac Upp Upp War Pro Fac Upp Upp Zhi Pro Res Qua Frg Res Tes Acc Com Total 53916 | 123 672 588 1209 542 916 162 1270 4404 345 2910 1325 521 83 555 2654 373 2909 1827 513 199 534 1126 77 1763 727 617 1584 765 1917 481 699 173 1345 2769 2219 4598 3729 793 2389 1511 Wait 4780 | 9 37 32 16 19 59 . 158 258 16 106 361 11 . 31 71 142 112 247 96 46 204 14 . 49 15 19 297 13 34 3 72 . 239 38 204 711 607 . 268 166 Move 45076 | 94 559 513 1025 484 716 97 908 3867 317 2719 887 488 83 513 2397 208 2606 1325 321 120 285 987 74 1544 700 596 1166 722 1712 467 607 158 1057 2601 1857 3391 2956 740 2010 1199 Hop 189 | . . . . . . . . 21 . 16 . . . . 8 . 31 4 . . . 16 . 13 . . 2 . 16 . 1 . 1 17 15 3 15 3 4 3 Pick Up 271 | 2 8 6 26 3 15 3 12 20 2 2 2 . . 1 7 1 11 6 11 . . 6 2 12 3 . 2 . 6 . . 3 . 10 6 46 14 4 12 7 Fast Attach 168 | 7 1 . 2 1 2 4 16 16 2 . 2 2 . 1 7 4 8 6 5 1 1 9 . 8 . . 4 . . . . 2 . 4 10 27 12 1 2 1 Attach 151 | . 1 2 3 . 3 3 7 3 1 1 4 2 . 1 9 3 12 3 2 . . 12 1 6 2 . 1 . 6 1 4 1 . 2 5 29 3 1 4 13 Detach 104 | . . . 1 . 2 3 2 4 2 1 2 2 . 1 7 3 7 2 2 1 . 9 . 5 1 . . . 2 1 4 . . 2 4 19 2 2 4 7 Swap 543 | . 10 1 27 7 23 19 29 44 1 15 16 . . 2 38 1 16 14 17 6 4 6 . 25 . . 22 . 15 3 2 4 8 28 19 39 18 10 38 16 Drop 318 | 1 2 . 31 4 14 4 25 25 3 1 4 2 . 2 6 4 19 2 14 . . 10 . 15 1 . 6 . 1 1 . 3 . 12 13 57 21 4 4 7 Fire 1129 | 10 51 30 74 23 31 20 111 53 . 5 26 2 . 1 79 6 54 81 38 25 37 13 . 50 . . 84 24 74 1 4 . 20 3 12 76 . . 6 5 Melee 911 | . . . . . 51 9 1 78 1 44 21 12 . 2 25 1 18 17 7 . . 14 . 29 5 2 . 6 51 4 5 2 20 44 71 138 81 28 37 87 Ram . | . . . . . . . . . . . . . . . . . . . . . . . . . . . . . . . . . . . . . . . . . Kick . | . . . . . . . . . . . . . . . . . . . . . . . . . . . . . . . . . . . . . . . . . Crush 16 | . 3 4 4 1 . . 1 . . . . . . . . . . . . . 3 . . . . . . . . . . . . . . . . . . . Escape Stasis 178 | . . . . . . . . 15 . . . . . . . . 15 46 . . . 28 . 7 . . . . . . . . . 7 3 57 . . . . Rewire 82 | . . . . . . . . . . . . . . . . . . 74 . . . 2 . . . . . . . . . . . 1 . 5 . . . . Trap . | . . . . . . . . . . . . . . . . . . . . . . . . . . . . . . . . . . . . . . . . . Miscellaneous . | . . . . . . . . . . . . . . . . . . . . . . . . . . . . . . . . . . . . . . . . . Route ------- -11/Scrapyard -10/Materials (discovered 3 exits: *Mat x2 / [*Min]) -10/Mines (discovered 2 exits: *Mat x2) -9/Materials (discovered 4 exits: *Mat x3 / *Min) -9/Mines (discovered 2 exits: *Mat / *Exi) -9/Exiles -8/Mines -8/Materials (discovered 3 exits: *Fac x3) -7/Factory (discovered 5 exits: *Fac x3 / *Sto / *Low) -7/Waste -7/Factory (discovered 5 exits: *Fac x2 / *Sto x2 / *Low) -7/Lower Caves -7/Lower Caves -7/Data Miner -6/Proximity Caves -6/Factory (discovered 4 exits: *Fac / *Low / *Ext x2) -6/Waste -6/Factory (discovered 5 exits: *Fac / *Low x2 / *Ext x2) -6/Extension (discovered 2 exits: *Fac / *Cet) -6/Cetus (discovered 2 exits: *Fac / *Arc) -6/Archives (discovered 3 exits: *Fac / *Hub x2) -6/Hub_04(d) (discovered 2 exits: *Fac x2) -5/Factory -5/Waste -5/Factory -5/Upper Caves -5/Upper Caves -5/Warlord -4/Proximity Caves -4/Factory (discovered 2 exits: *Res / *Upp) -4/Upper Caves -4/Upper Caves (discovered 2 exits: *Res / *Zhi) -4/Zhirov -3/Proximity Caves -3/Research (discovered 4 exits: *Res x2 / *Qua x2) -3/Quarantine (discovered 3 exits: *Res / [*Sec] / *Frg) -3/Protoforge -2/Research (discovered 5 exits: *Acc x3 / *Tes x2) -2/Testing -1/Access -1/Command Free Derelict Territories History --------- Turn | Location | Event 9 | -11/Scrapyard | Discovered new exit (range 16) 200 | -11/Scrapyard | Entered Materials 311 | -10/Materials | Build established: Mutant 407 | -10/Materials | Discovered new exit (range 9) 900 | -10/Materials | Derelicts attacked the area 1072 | -10/Materials | Discovered new exit (range 5) 1327 | -10/Materials | Discovered new exit (range 16) 1351 | -10/Materials | Entered Mines 1400 | -10/Mines | Met a Derelict bent on vengeance 1443 | -10/Mines | Found a Scrap Suit stashed away for nefarious purposes 1726 | -10/Mines | Discovered new exit (range 11) 1836 | -10/Mines | A weapon hastily lodged in a ceiling crevice suddenly fell to the ground 1885 | -10/Mines | Discovered new exit (range 7) 1960 | -10/Mines | Assisted by bots powering up and referring to "LRC-V3" 2167 | -10/Mines | Learned location of 1 exit from Materials 2299 | -10/Mines | Entered Materials 2299 | -9/Materials | Accompanied by 3 allies 2299 | -9/Materials | Evolved 2 slots: Propulsion x1, Utility x1 2300 | -9/Materials | Identified exit to Mines 2575 | -9/Materials | Discovered new exit (range 8) 2901 | -9/Materials | Discovered new exit (range 6) 3395 | -9/Materials | Build established: Scavenger-Mutant 3520 | -9/Materials | Learned Materials stockpile data 3541 | -9/Materials | Learned location of 1 exit from Recycling 3552 | -9/Materials | Learned location of 1 exit from Storage 3573 | -9/Materials | Learned location of Zion (-6) 3605 | -9/Materials | Learned 4 Recycling zone layouts 3904 | -9/Materials | Discovered new exit (range 16) 4049 | -9/Materials | Build established: Mutant 4274 | -9/Materials | Entered Mines 4389 | -9/Mines | Assembled infested the area 4394 | -9/Mines | Assisted by a Guerilla fighting off Assembled 4658 | -9/Mines | Build established: Scavenger-Mutant 4796 | -9/Mines | Learned Materials garrison access intel 4818 | -9/Mines | Deemed a non-threat by the Exiles lab entrance 4818 | -9/Mines | Discovered new exit (range 5) 4988 | -9/Mines | Learned Materials stockpile data 5029 | -9/Mines | Discovered new exit (range 5) 5061 | -9/Mines | Build established: Mutant 5155 | -9/Mines | Entered Exiles 5213 | -9/Exiles | Met 8R-AWN 5294 | -9/Exiles | Met EX-HEX 5350 | -9/Exiles | Met EX-BIN 5374 | -9/Exiles | Aligned with FarCom system 5376 | -9/Exiles | Given EX-Vault access code 5422 | -9/Exiles | Opened EX-Vault 5434 | -9/Exiles | Found Longsword +1 5474 | -9/Exiles | Build established: Scavenger-Mutant 5476 | -9/Exiles | Warned to stay clear of 0b10 Research branches 5534 | -9/Exiles | Met EX-DEC 5782 | -9/Exiles | Attacked by the Exiles 5943 | -9/Exiles | Destroyed 8R-AWN 5945 | -9/Exiles | Found Prototype Ballistic Gun 5945 | -9/Exiles | Identified 8R-AWN's Boregun 5949 | -9/Exiles | Found 8R-AWN's Boregun 5961 | -9/Exiles | Lost 3 parts (2n1u) 6198 | -9/Exiles | Build established: Mutant 6264 | -9/Exiles | Destroyed EX-DEC 6270 | -9/Exiles | Found Prototype Processor 6317 | -9/Exiles | Destroyed EX-HEX 6369 | -9/Exiles | Destroyed EX-BIN 6451 | -9/Exiles | Found Deploy-a-Sentry 6709 | -9/Exiles | Found Trap Reconfigurator 6720 | -9/Exiles | Found Modified TNC 6885 | -9/Exiles | Discovered new exit (range 14) 6911 | -9/Exiles | Stole four prototypes: Longsword +1, Modified TNC, Trap Reconfigurator, Deploy-a-Sentry 6911 | -9/Exiles | Entered Mines 6963 | -8/Mines | NK-0LA came to Exiles' defense 6982 | -8/Mines | Core integrity fell below 50% 7038 | -8/Mines | Core integrity fell below 20% 7106 | -8/Mines | Found Prototype Device 7106 | -8/Mines | Identified Thermal Barrier 7150 | -8/Mines | Discovered new exit (range 5) 7156 | -8/Mines | Entered Materials 7156 | -8/Materials | Evolved 2 slots: Propulsion x1, Utility x1 7158 | -8/Materials | Loaded intel: 1 garrison access location 7384 | -8/Materials | Identified Exp. Core Analyzer 7480 | -8/Materials | Build established: Scavenger-Mutant 7706 | -8/Materials | Discovered new exit (range 16) 7837 | -8/Materials | Discovered new exit (range 13) 8106 | -8/Materials | Lost 6 parts (1p2n3u) 8486 | -8/Materials | Learned Storage terminal intel 8536 | -8/Materials | Learned location of Lower Caves (-7) 8577 | -8/Materials | Learned location of 1 exit from Extension 8607 | -8/Materials | Learned location of 1 exit from Lower Caves 8622 | -8/Materials | Repaired Graviton Reactor 8626 | -8/Materials | Identified exit to Factory 8636 | -8/Materials | Learned 4 Recycling zone layouts 8654 | -8/Materials | Learned Factory security intel 8715 | -8/Materials | Learned 2 Storage zone layouts 9039 | -8/Materials | Entered Factory 9039 | -7/Factory | Evolved 2 slots: Propulsion x1, Utility x1 9040 | -7/Factory | Identified exit to Factory 9158 | -7/Factory | Found Prototype Launcher 9158 | -7/Factory | Identified Rocket Array 9202 | -7/Factory | DAS Turret deployed 9343 | -7/Factory | Build established: Sprinter 9382 | -7/Factory | Fabricated Micro-nuke Launcher (x1) 9410 | -7/Factory | Discovered new exit (range 11) 9413 | -7/Factory | Identified exit to Storage 9681 | -7/Factory | Build established: Scout 9829 | -7/Factory | Discovered exit to Factory (range 16) 9839 | -7/Factory | First assault squad dispatched 10217 | -7/Factory | Fabricated Nuclear Pulse Array (x1) 10288 | -7/Factory | Discovered new exit (range 8) 10292 | -7/Factory | Identified exit to Lower Caves 10464 | -7/Factory | Noticed a derelict Sapper rigging charges 10491 | -7/Factory | Discovered exit to Factory (range 14) 10776 | -7/Factory | Manually triggered Chute Trap 10776 | -7/Factory | Sucked down chute 10776 | -7/Factory | Entered Waste 10776 | -7/Waste | The area was eerily silent 10830 | -7/Waste | Discovered new exit (range 14) 10877 | -7/Waste | Identified exit to Factory 10877 | -7/Waste | Entered Factory 11086 | -7/Factory | Discovered exit to Factory (range 15) 11097 | -7/Factory | Discovered exit to Storage (range 4) 11169 | -7/Factory | Discovered exit to Storage (range 9) 11538 | -7/Factory | Discovered exit to Factory (range 6) 11633 | -7/Factory | Discovered exit to Lower Caves (range 14) 11715 | -7/Factory | Repaired Broken Tri-rail Accelerator 11741 | -7/Factory | Entered Lower Caves 11742 | -7/Lower Caves | Identified exit to Lower Caves 11763 | -7/Lower Caves | Found DCF Scrap (13 items) 11895 | -7/Lower Caves | Learned location of 1 exit from Proximity Caves 12195 | -7/Lower Caves | Spotted B-75 Beast 12374 | -7/Lower Caves | Encountered a Warlord checkpoint 12442 | -7/Lower Caves | Entered another Lower Caves area 12444 | -7/Lower Caves | Learned location of Extension (-6) 12579 | -7/Lower Caves | Discovered new exit (range 11) 12582 | -7/Lower Caves | Encountered a Master Thief 12583 | -7/Lower Caves | Encountered a Master Thief 12585 | -7/Lower Caves | Encountered a Master Thief 12586 | -7/Lower Caves | Encountered a Master Thief 12601 | -7/Lower Caves | Identified exit to Data Miner 12601 | -7/Lower Caves | Entered Data Miner 12601 | -7/Data Miner | Discovered new exit (range 6) 12606 | -7/Data Miner | Met Data Miner 12612 | -7/Data Miner | Learned location of Section 7 (-3) 12612 | -7/Data Miner | Acquired the access code to Warlord's prototype stash 12614 | -7/Data Miner | Received God Mode back door access code from Data Miner 12620 | -7/Data Miner | Identified exit to Proximity Caves 12621 | -7/Data Miner | Entered Proximity Caves 12784 | -6/Proximity Caves | Entered Factory 12784 | -6/Factory | Evolved 2 slots: Utility x2 13086 | -6/Factory | Discovered new exit (range 13) 13088 | -6/Factory | Identified exit to Lower Caves 13111 | -6/Factory | Discovered new exit (range 6) 13209 | -6/Factory | Fabricated Graviton Reactor? 13303 | -6/Factory | Discovered new exit (range 21) 13318 | -6/Factory | Repaired Graviton Reactor? 13525 | -6/Factory | Cargo convoy interrupted 13604 | -6/Factory | Destroyed 8 combat bots 13650 | -6/Factory | Discovered new exit (range 13) 13674 | -6/Factory | Spotted B-75 Beast 13708 | -6/Factory | Manually triggered Chute Trap 13708 | -6/Factory | Sucked down chute 13708 | -6/Factory | Entered Waste 13709 | -6/Waste | Joined by Warlord forces that had cleared the area 13854 | -6/Waste | Discovered new exit (range 12) 13862 | -6/Waste | Identified exit to Factory 13927 | -6/Waste | Entered Factory 13927 | -6/Factory | Accompanied by 19 allies 13930 | -6/Factory | Discovered exit to Lower Caves (range 17) 13999 | -6/Factory | Identified exit to Extension 14006 | -6/Factory | Lost 3 allies 14500 | -6/Factory | Discovered new exit (range 17) 14520 | -6/Factory | Lost 7 allies 14764 | -6/Factory | Unchained authorized (6S-H0T) 14790 | -6/Factory | Cargo convoy interrupted 14828 | -6/Factory | Found Prototype Launcher 14935 | -6/Factory | Entered Extension 14935 | -6/Extension | Identified Tactical Quantum Warhead 14936 | -6/Extension | Identified exit to Cetus 15029 | -6/Extension | Rescued a captive Derelict 15031 | -6/Extension | Rescued a captive Derelict 15189 | -6/Extension | Rescued a captive Derelict 15191 | -6/Extension | Rescued a captive Derelict 15238 | -6/Extension | Rescued A7 15242 | -6/Extension | Rescued a captive Derelict 15247 | -6/Extension | Rescued a captive Derelict 15271 | -6/Extension | Rescued a captive Derelict 15274 | -6/Extension | Rescued a captive Derelict 15285 | -6/Extension | First assault squad dispatched 15330 | -6/Extension | Rescued a captive Derelict 15331 | -6/Extension | Rescued a captive Derelict 15523 | -6/Extension | Spotted B-75 Beast 15587 | -6/Extension | Allies destroyed B-75 Beast 15594 | -6/Extension | Spotted B-75 Beast 15618 | -6/Extension | Destroyed B-75 Beast 15647 | -6/Extension | Rescued a captive Derelict 15650 | -6/Extension | Rescued a captive Derelict 15656 | -6/Extension | Lost 5 allies 15668 | -6/Extension | Rescued a captive Derelict 15670 | -6/Extension | Rescued a captive Derelict 15685 | -6/Extension | Rescued a captive Derelict 15686 | -6/Extension | Rescued a captive Derelict 15711 | -6/Extension | Rescued a captive Derelict 15757 | -6/Extension | Rescued a captive Derelict 15781 | -6/Extension | Rescued a captive Derelict 15781 | -6/Extension | Rescued a captive Derelict 15817 | -6/Extension | Discovered new exit (range 10) 15846 | -6/Extension | Identified exit to Factory 15921 | -6/Extension | Entered Cetus 15921 | -6/Cetus | Accompanied by 20 allies (A7) 15926 | -6/Cetus | Acquired a Cetus Manufacturing Module code from A7 15929 | -6/Cetus | Spotted Cetus Guard 15931 | -6/Cetus | Spotted Cetus Guard 15936 | -6/Cetus | Spotted Cetus Guard 15946 | -6/Cetus | Allies destroyed Cetus Guard 15949 | -6/Cetus | Allies destroyed Cetus Guard 15950 | -6/Cetus | Destroyed Cetus Guard 15978 | -6/Cetus | Lost 6 allies 16019 | -6/Cetus | Started Cetus Manufacturing Module 16022 | -6/Cetus | Discovered new exit (range 17) 16032 | -6/Cetus | Spotted Cetus Guard 16032 | -6/Cetus | Spotted Cetus Guard 16044 | -6/Cetus | Manufactured an Enhanced Grunt 16047 | -6/Cetus | Destroyed Cetus Guard 16050 | -6/Cetus | Destroyed Cetus Guard 16053 | -6/Cetus | Destroyed Cetus Guard 16057 | -6/Cetus | Build established: Commander-Sprinter 16065 | -6/Cetus | Discovered exit to Factory (range 17) 16069 | -6/Cetus | Manufactured an Enhanced Grunt 16094 | -6/Cetus | Manufactured an Enhanced Grunt 16119 | -6/Cetus | Manufactured an Enhanced Grunt 16144 | -6/Cetus | Manufactured an Enhanced Grunt 16253 | -6/Cetus | Identified exit to Archives 16362 | -6/Cetus | Build established: Commander-Mutant 16410 | -6/Cetus | Murdered A7 16414 | -6/Cetus | Extracted ID and sensor layout for unrecognized location from A7's data core 16419 | -6/Cetus | Found Prototype Protection 16419 | -6/Cetus | Identified Med. Regenerative Plating 16466 | -6/Cetus | Entered Archives 16466 | -6/Archives | Accompanied by 16 allies 16530 | -6/Archives | Lost 6 allies 16537 | -6/Archives | Discovered new exit (range 17) 16561 | -6/Archives | Identified exit to Hub_04(d) 16710 | -6/Archives | Discovered exit to Hub_04(d) (range 16) 16747 | -6/Archives | Discovered exit to Factory (range 17) 16786 | -6/Archives | Entered Hub_04(d) 16786 | -6/Hub_04(d) | Accompanied by 10 allies 16851 | -6/Hub_04(d) | Discovered exit to Factory (range 15) 16876 | -6/Hub_04(d) | Spotted B-75 Beast 16883 | -6/Hub_04(d) | Allies destroyed B-75 Beast 16992 | -6/Hub_04(d) | Unchained authorized (6S-H0T) 17039 | -6/Hub_04(d) | Build established: Scavenger-Mutant 17059 | -6/Hub_04(d) | Discovered exit to Factory (range 14) 17242 | -6/Hub_04(d) | Lost 4 allies 17479 | -6/Hub_04(d) | Network Hub disabled 17561 | -6/Hub_04(d) | Network Hub disabled 17569 | -6/Hub_04(d) | Entered Factory 17569 | -5/Factory | Evolved 2 slots: Utility x2 17927 | -5/Factory | Unchained authorized (6S-H0T) 17938 | -5/Factory | Build established: Scavenger-Scout 18013 | -5/Factory | Found Prototype Processor 18020 | -5/Factory | Sucked down chute 18020 | -5/Factory | Entered Waste 18025 | -5/Waste | Spotted C-40 Crusher 18026 | -5/Waste | Spotted C-40 Crusher 18027 | -5/Waste | Found Prototype Device 18030 | -5/Waste | Spotted C-40 Crusher 18032 | -5/Waste | Spotted C-40 Crusher 18032 | -5/Waste | Spotted C-40 Crusher 18035 | -5/Waste | EMP discharged 18035 | -5/Waste | Spotted C-40 Crusher 18036 | -5/Waste | Discovered new exit (range 10) 18043 | -5/Waste | Identified exit to Factory 18043 | -5/Waste | Entered Factory 18093 | -5/Factory | Identified Exp. Focal Shield 18095 | -5/Factory | Identified Exp. Targeting Computer 18521 | -5/Factory | Discovered new exit (range 10) 18523 | -5/Factory | Identified exit to Upper Caves 18576 | -5/Factory | Fabricated Cld. Cesium-ion Thruster? 18631 | -5/Factory | Fabricated Graviton Reactor (x1) 18776 | -5/Factory | Entered Upper Caves 18786 | -5/Upper Caves | Identified exit to Upper Caves 18851 | -5/Upper Caves | Learned Factory trap positions 18876 | -5/Upper Caves | Learned Factory stockpile data 18948 | -5/Upper Caves | Spotted B-75 Beast 18997 | -5/Upper Caves | Entered another Upper Caves area 19120 | -5/Upper Caves | Discovered new exit (range 10) 19122 | -5/Upper Caves | Identified exit to Warlord 19146 | -5/Upper Caves | Learned Factory emergency access door positions 19189 | -5/Upper Caves | Entered Warlord 19199 | -5/Warlord | System corruption cleaned by Quarantine Array 19247 | -5/Warlord | Opened Warlord's prototype stash 19255 | -5/Warlord | Found Prototype Processor 19255 | -5/Warlord | Identified Spectral Analyzer 19261 | -5/Warlord | Found Exp. Focal Shield 19275 | -5/Warlord | Received a Watcher feed algorithm from an ecstatic Tinkerer 19288 | -5/Warlord | Build established: Scout 19306 | -5/Warlord | Visited the Vortex Lab 19306 | -5/Warlord | Found Prototype Energy Gun 19306 | -5/Warlord | Identified Vortex Rail 19309 | -5/Warlord | Found Prototype Energy Gun 19309 | -5/Warlord | Identified Vortex Rifle 19314 | -5/Warlord | Warlord's base attacked by MAIN.C 19328 | -5/Warlord | Met Warlord 19544 | -5/Warlord | Spotted B-86 Titan 19551 | -5/Warlord | Spotted B-75 Beast 19580 | -5/Warlord | Destroyed 9 combat bots 19602 | -5/Warlord | Lost 5 allies 19605 | -5/Warlord | Warlord forces counterattacked 19674 | -5/Warlord | Spotted Executioner 19677 | -5/Warlord | Destroyed Executioner 19703 | -5/Warlord | Discovered new exit (range 14) 19712 | -5/Warlord | Lost 5 allies 19714 | -5/Warlord | Spotted Executioner 19738 | -5/Warlord | Destroyed Executioner 19754 | -5/Warlord | Found Exp. Core Analyzer 19756 | -5/Warlord | Found Prototype Device 19756 | -5/Warlord | Identified Adv. Kinecellerator 19768 | -5/Warlord | Lost 5 allies 19815 | -5/Warlord | Spotted Striker 19818 | -5/Warlord | Spotted Striker 19872 | -5/Warlord | Lost 10 allies 19921 | -5/Warlord | Spotted Executioner 19923 | -5/Warlord | Spotted Executioner 19927 | -5/Warlord | P-80 Master assimilated allied JM-1E4(g) 19929 | -5/Warlord | P-70 Sage assimilated allied F3-M5R 19978 | -5/Warlord | Lost 8 allies 19989 | -5/Warlord | Warlord base infiltrated, sounded retreat 20041 | -5/Warlord | Spotted Striker 20061 | -5/Warlord | Identified exit to Proximity Caves 20062 | -5/Warlord | Entered Proximity Caves 20202 | -4/Proximity Caves | Discovered new exit (range 9) 20204 | -4/Proximity Caves | Identified exit to Factory 20230 | -4/Proximity Caves | Build established: Scavenger-Scout 20293 | -4/Proximity Caves | Learned Extension terminal intel 20293 | -4/Proximity Caves | Learned Factory security intel 20293 | -4/Proximity Caves | Learned 6 Lower Caves zone layouts 20338 | -4/Proximity Caves | Entered Factory 20338 | -4/Factory | Evolved 2 slots: Propulsion x1, Utility x1 20339 | -4/Factory | Loaded intel: 69 trap records 20408 | -4/Factory | Identified exit to Upper Caves 20942 | -4/Factory | Spotted B-86 Titan 20993 | -4/Factory | Discovered new exit (range 5) 21041 | -4/Factory | Repaired Broken Graviton Reactor? 21132 | -4/Factory | Identified exit to Research 21155 | -4/Factory | Entered Upper Caves 21157 | -4/Upper Caves | Learned location of Testing (-2) 21255 | -4/Upper Caves | Discovered new exit (range 5) 21256 | -4/Upper Caves | Identified exit to Upper Caves 21306 | -4/Upper Caves | Entered another Upper Caves area 21313 | -4/Upper Caves | Discovered exit to Research (range 2) 21474 | -4/Upper Caves | Encountered a Warlord checkpoint 21519 | -4/Upper Caves | Found DCF Scrap (12 items) 21554 | -4/Upper Caves | Discovered new exit (range 8) 21557 | -4/Upper Caves | Identified exit to Zhirov 21583 | -4/Upper Caves | Entered Zhirov 21583 | -4/Zhirov | Discovered new exit (range 3) 21589 | -4/Zhirov | Met Zhirov 21594 | -4/Zhirov | Learned location of Quarantine (-3) 21594 | -4/Zhirov | Learned location of Command (-1) 21599 | -4/Zhirov | Zhirov requested help retrieving the SGEMP Prototype 21604 | -4/Zhirov | Found Alien Artifact 21604 | -4/Zhirov | Identified Integrated Reactor 21604 | -4/Zhirov | Installed Integrated Reactor, increased core energy generation (+10) 21614 | -4/Zhirov | Found Alien Artifact 21649 | -4/Zhirov | Identified exit to Proximity Caves 21649 | -4/Zhirov | Entered Proximity Caves 21986 | -3/Proximity Caves | Attracted the attention of an 0b10 checkpoint 22075 | -3/Proximity Caves | Snuck into a huge 0b10 base via the rear entrance 22279 | -3/Proximity Caves | Discovered exit to Research (range 3) 22286 | -3/Proximity Caves | Entered Research 22286 | -3/Research | Evolved 2 slots: Power x1, Propulsion x1 22384 | -3/Research | Identified exit to Quarantine 22486 | -3/Research | Revision forces began assault on 0b10 22523 | -3/Research | Met up with Revision 17++ 22635 | -3/Research | Build established: Hacker-Scout 22716 | -3/Research | Discovered new exit (range 9) 22720 | -3/Research | Identified Transdimensional Reconstructor 22725 | -3/Research | Identified exit to Research 22986 | -3/Research | Research terminal network offline 23027 | -3/Research | Discovered exit to Research (range 4) 23054 | -3/Research | Build established: Ninja 23087 | -3/Research | Spotted B-86 Titan 23096 | -3/Research | Found Exp. Signal Interpreter 23234 | -3/Research | Entered Quarantine 23247 | -3/Quarantine | Found Alien Artifact 23247 | -3/Quarantine | Identified Dimensional Node Initializer 23247 | -3/Quarantine | Initialized slip node 23497 | -3/Quarantine | Found Alien Slashing Weapon 23497 | -3/Quarantine | Identified Sigix Broadsword 23694 | -3/Quarantine | Warped through subspace to slip node 23698 | -3/Quarantine | Found Alien Artifact 23750 | -3/Quarantine | Found Alien Artifact 23847 | -3/Quarantine | Learned Access recycling unit intel 23896 | -3/Quarantine | Learned Access non-interactive machine intel 23949 | -3/Quarantine | Found Dimensional Node Initializer 23952 | -3/Quarantine | Found Alien Artifact 23953 | -3/Quarantine | Found Alien Artifact 23953 | -3/Quarantine | Identified Hpw. Transdimensional Reconstructor (x3) 23953 | -3/Quarantine | Warped through subspace to slip node 23964 | -3/Quarantine | Learned location of 1 exit from Armory 23981 | -3/Quarantine | Learned Research non-interactive machine intel 23989 | -3/Quarantine | Learned Access security intel 24007 | -3/Quarantine | Identified exit to Protoforge 24033 | -3/Quarantine | Learned Access trap positions 24044 | -3/Quarantine | Discovered exit to Research (range 10) 24073 | -3/Quarantine | Spotted Fortress 24091 | -3/Quarantine | Discovered new exit (range 6) 24239 | -3/Quarantine | Build established: Sprinter 24244 | -3/Quarantine | Entered Protoforge 24325 | -3/Protoforge | Spotted Hotshot 24346 | -3/Protoforge | Spotted Hotshot 24346 | -3/Protoforge | Spotted Hotshot 24363 | -3/Protoforge | Spotted Hotshot 24407 | -3/Protoforge | Spotted Hotshot 24453 | -3/Protoforge | Initialized slip node 24475 | -3/Protoforge | Destroyed Hotshot 24552 | -3/Protoforge | Build established: Ninja 24752 | -3/Protoforge | Spotted Immortal 24752 | -3/Protoforge | Spotted Immortal 24764 | -3/Protoforge | Superfortress began startup sequence 24772 | -3/Protoforge | Forge Plexus network access discovered 24793 | -3/Protoforge | Spotted Decapitator 24793 | -3/Protoforge | Spotted Decapitator 24793 | -3/Protoforge | Spotted Decapitator 24831 | -3/Protoforge | Found Cep. Rapid Grenade Launcher 24835 | -3/Protoforge | Destroyed Decapitator 24837 | -3/Protoforge | Destroyed Decapitator 24837 | -3/Protoforge | Destroyed Decapitator 24868 | -3/Protoforge | Lost 4 parts (1n3u) 24875 | -3/Protoforge | Spotted V158-p 24887 | -3/Protoforge | Found Cep. Fieldthrust Drive 24897 | -3/Protoforge | Spotted V000-i 24897 | -3/Protoforge | Spotted V420-i 24897 | -3/Protoforge | Found Cep. Fieldthrust Drive 24904 | -3/Protoforge | Warped through subspace to slip node 25043 | -3/Protoforge | Found Crosscalibrator 25080 | -3/Protoforge | Destroyed Immortal 25112 | -3/Protoforge | Destroyed Immortal 25134 | -3/Protoforge | Found Cep. Reaction Jets 25136 | -3/Protoforge | Found Cep. RG22 Armor 25158 | -3/Protoforge | Build established: Sprinter 25293 | -3/Protoforge | Found Cep. Antigrav Storage Unit 25598 | -3/Protoforge | Spotted Decapitator 25598 | -3/Protoforge | Spotted Decapitator 25598 | -3/Protoforge | Spotted Decapitator 25605 | -3/Protoforge | Spotted Immortal 25614 | -3/Protoforge | Destroyed Decapitator 25617 | -3/Protoforge | Destroyed Decapitator 25634 | -3/Protoforge | Destroyed Decapitator 25645 | -3/Protoforge | Found Cep. Weapon Articulator 25694 | -3/Protoforge | Spotted V428-n 25695 | -3/Protoforge | Spotted V926-v 25711 | -3/Protoforge | Spotted V690-j 25714 | -3/Protoforge | Found Femtoactuators 25720 | -3/Protoforge | Found Cep. Melee Reflex Suite 25724 | -3/Protoforge | Destroyed V690-j 25788 | -3/Protoforge | Destroyed V428-n 25797 | -3/Protoforge | Found Prototype Launcher 25797 | -3/Protoforge | Identified Cep. Concussive Dispersal Blaster 25801 | -3/Protoforge | Found Prototype Processor 25801 | -3/Protoforge | Identified Exp. Armor Integrity Analyzer 25825 | -3/Protoforge | Found Cep. Weapon Articulator 25829 | -3/Protoforge | Found Cep. Gyrokinetic System 25831 | -3/Protoforge | Found Faulty Cep. Melee Reflex Suite 25833 | -3/Protoforge | Found Cep. Networked Targeting System 25837 | -3/Protoforge | Found Cep. Networked Targeting System 25839 | -3/Protoforge | Found Cep. Recoil Nullifier 25840 | -3/Protoforge | Found Exp. Kinecellerator 25844 | -3/Protoforge | Found Exp. Kinecellerator 25919 | -3/Protoforge | Found Cep. Zero-point Core 25922 | -3/Protoforge | Found Faulty Cep. Zero-point Core 25931 | -3/Protoforge | System corruption reached 10% 25988 | -3/Protoforge | Spotted Immortal 25994 | -3/Protoforge | First assault squad dispatched 26055 | -3/Protoforge | Destroyed Immortal 26087 | -3/Protoforge | Destroyed Immortal 26102 | -3/Protoforge | Found Cep. Deflector Sword 26104 | -3/Protoforge | Found Faulty Cep. Deflector Sword 26107 | -3/Protoforge | Found Cep. Plasma Driver 26112 | -3/Protoforge | Found Exp. Jetlance 26159 | -3/Protoforge | Additional patrols dispatched to research labs 26163 | -3/Protoforge | Found Transdimensional Reconstructor 26320 | -3/Protoforge | Identified Subatomic Replicator 26320 | -3/Protoforge | Used Subatomic Replicator to replicate Faulty Cep. Phase Shift Module 26324 | -3/Protoforge | Found Faulty Cep. Phase Shift Module 26392 | -3/Protoforge | Warped through subspace to slip node 26394 | -3/Protoforge | Found Cep. Beam Splitter 26414 | -3/Protoforge | Spotted Overlord 26414 | -3/Protoforge | Discovered exit to Research (range 8) 26415 | -3/Protoforge | Entered Research 26415 | -2/Research | Warlord forces began assault on 0b10 26415 | -2/Research | Evolved 2 slots: Propulsion x1, Weapon x1 26416 | -2/Research | Identified exit to Testing 26417 | -2/Research | Loaded intel: 65 non-interactive machine locations 26517 | -2/Research | Met up with Warlord 26525 | -2/Research | Research machine network offline 26527 | -2/Research | Discovered new exit (range 5) 26528 | -2/Research | Spotted B-90 Cyclops 26585 | -2/Research | P-80 Master assimilated allied IT-MXS(S) 26600 | -2/Research | Spotted B-90 Cyclops 26605 | -2/Research | Discovered exit to Testing (range 8) 26673 | -2/Research | Spotted Striker 26673 | -2/Research | Spotted Executioner 26715 | -2/Research | Spotted Striker 26718 | -2/Research | Discovered new exit (range 13) 26758 | -2/Research | Found Prototype Device 26758 | -2/Research | Identified Adv. EM Shield 26798 | -2/Research | Found Prototype Device 26798 | -2/Research | Identified Exp. Thermal Shield 26836 | -2/Research | Found Prototype Device 26836 | -2/Research | Identified Exp. Weapon Cycler 26861 | -2/Research | Spotted Executioner 26863 | -2/Research | Borebot progress halted 26997 | -2/Research | Met DD-05H 26997 | -2/Research | Discovered new exit (range 13) 27013 | -2/Research | Spotted Executioner 27130 | -2/Research | Spotted Striker 27130 | -2/Research | Spotted Striker 27130 | -2/Research | Spotted Striker 27130 | -2/Research | Spotted Striker 27133 | -2/Research | Destroyed Striker 27141 | -2/Research | Destroyed Striker 27150 | -2/Research | Destroyed Striker 27179 | -2/Research | Destroyed 7 combat bots 27179 | -2/Research | Lost 6 allies 27382 | -2/Research | Spotted Executioner 27630 | -2/Research | Spotted Executioner 27643 | -2/Research | Spotted Striker 27645 | -2/Research | Entered Testing 27679 | -2/Testing | Found Prototype Device 27679 | -2/Testing | Identified 2N-1CE's Frost Array 27685 | -2/Testing | Unchained authorized (V4-D3R) 27701 | -2/Testing | Garrison activated, responded to threat 27724 | -2/Testing | Spotted Striker 27745 | -2/Testing | Found Exp. Signal Interpreter 27777 | -2/Testing | Discovered new exit (range 14) 27780 | -2/Testing | Identified exit to Access 27825 | -2/Testing | Entered Access 27825 | -1/Access | Evolved 2 slots: Utility x1, Weapon x1 27826 | -1/Access | Loaded intel: 66 trap records 27828 | -1/Access | Loaded intel: 75 non-interactive machine locations 27829 | -1/Access | Loaded intel: 4 recycling unit locations 27835 | -1/Access | Destroyed 10 combat bots 28017 | -1/Access | Destroyed CY-PHR 28022 | -1/Access | Found Prototype Device 28022 | -1/Access | Identified Exp. Cloaking Device 28025 | -1/Access | Found Prototype Processor 28025 | -1/Access | Identified Procsplitter 28026 | -1/Access | Attached Procsplitter, gained temporary slot: Utility 28027 | -1/Access | Found Prototype Processor 28027 | -1/Access | Identified Zeronet Interface 28072 | -1/Access | Unchained authorized (CL-0N3) 28117 | -1/Access | Build established: Scout 28149 | -1/Access | Discovered new exit (range 7) 28181 | -1/Access | T-07 Excavator reconstituted as S7 Guard 28181 | -1/Access | Spotted S7 Guard 28185 | -1/Access | Destroyed S7 Guard 28185 | -1/Access | S7 Guard reconstituted as CL-0N3 28193 | -1/Access | Destroyed CL-0N3 28194 | -1/Access | Extracted schematics, analyses from CL-0N3's data core 28194 | -1/Access | Found ID Mask 28226 | -1/Access | Unchained authorized (V4-D3R) 28566 | -1/Access | Entered Command 28691 | -1/Command | Disengaged cave seal 28691 | -1/Command | Derelicts emerged from the dark tunnel 28691 | -1/Command | Welcomed Warlord to Command 28785 | -1/Command | Spotted M Guard 28785 | -1/Command | Spotted M Guard 28785 | -1/Command | Spotted Combat Programmer 28785 | -1/Command | Spotted Combat Programmer 28806 | -1/Command | Destroyed Combat Programmer 28859 | -1/Command | Spotted V6-F0I(g) 28866 | -1/Command | Warlord commented on Warlord statues 28868 | -1/Command | Destroyed Combat Programmer 28891 | -1/Command | Lost 3 allies 28917 | -1/Command | All MAIN.C guards destroyed 28932 | -1/Command | Lost 4 parts (3u1w) 28940 | -1/Command | Destroyed 8 combat bots 28976 | -1/Command | Build established: Sprinter 29016 | -1/Command | Met MAIN.C 29019 | -1/Command | 0b10 Conduit disabled 29072 | -1/Command | Destroyed MAIN.C Shell 29074 | -1/Command | MAIN.C activated Command garrisons 29078 | -1/Command | Found Prototype Protection 29106 | -1/Command | Lost 3 parts (1n2w) 29106 | -1/Command | Destroyed MAIN.C 29107 | *** | Establishing Free Derelict Territories! Last Messages --------------- 29079_ Acquired 42 matter. 29085_ Knocked back. 29086_ Destroyed Adv. Quantum Shading Machine. 29092_ Knocked back. 29097_ MAIN.C knocked back. 29097_ Blast Slug penetrates 0b10 Conduit. 29097_ Blast Slug penetrates MAIN.C. 29102_ MAIN.C knocked back. 29102_ Blast Slug penetrates MAIN.C. 29102_ Blast Slug penetrates 0b10 Conduit. 29106_ Deflected attack with Cep. Deflector Sword. 29106_ Knocked back. 29106_ MAIN.C: "I hope you know you're still going to DIE HERE WITH ME!" Heavy Barrier opened. 29106_ MAIN.C destroyed. ZY-L1N: Victory! Sure there's still lots to do, but without MAIN.C at the helm 0b10 doesn't stand a chance. We've got this... [Achievement: Warlord Forever!] Map ----- +----------------------------------------------------+ | ?????????????????????????????????????????????????? | | ?????????????????????????????????????????????????? | | ?????????????????????????????????????????????????? | | ?????????????????????????????????????????????????? | | ?????????????????????????????????????????????????? | | ?????????????????????????????????????????????????? | | ?????????????????????????????????????????????????? | | ?????????????????????????????????????????????????? | | ?????????????????????????????????????????????????? | | ?????????????????????????????????????????????????? | | ?????????????????????????????????????????????????? | | ??????????????#???#################??????????????? | | ??????????????? """" "" #??????????????? | | ??????????????? "" #??????????????? | | ???????????????"" "" ################ | | ???????????????""" """"" / | | ???????????????? " """ / | | ??????????????? """ "" / | | ?????????????"" """" % ################ | | ????????????? " """"" ! #??????????????? | | ????????????? " " % #??????????????? | | ????????????? " " = W #??????????????? | | ?????????????"""""""" % """""#??????????????? | | ????????????#"" % """"""#??????????????? | | ????????????# %$ % """"#??????????????? | | ????????????# @ " #??????????????? | | ????????????# % " #??????????????? | | ?????????? " " " " #??????????????? | | ??????????? " " """" #??????????????? | | ??????????? " " " " #??????????????? | | ????????????# " """""" " " #??????????????? | | ????????????# " """ " """"""""#??????????????? | | ????????????# """ " " " #??????????????? | | ????????????##?#???################??????????????? | | ?????????????????????????????????????????????????? | | ?????????????????????????????????????????????????? | | ?????????????????????????????????????????????????? | | ?????????????????????????????????????????????????? | | ?????????????????????????????????????????????????? | | ?????????????????????????????????????????????????? | | ?????????????????????????????????????????????????? | | ?????????????????????????????????????????????????? | | ?????????????????????????????????????????????????? | | ?????????????????????????????????????????????????? | | ?????????????????????????????????????????????????? | | ?????????????????????????????????????????????????? | | ?????????????????????????????????????????????????? | | ?????????????????????????????????????????????????? | | ?????????????????????????????????????????????????? | | ?????????????????????????????????????????????????? | +----------------------------------------------------+ Best States ------------- Heat Dissipation 149 Energy Generation 71 Energy Capacity 2700 Matter Stores 300 Matter Capacity 300 Sight Range 24 Robot Scan Range 16 Terrain Scan Range 16 Terrain Scan Density 10 Jamming Range 14 Additional Mass Support 12 Base Temperature (-) 100 Armor Coverage 900 Resistance: KI 30 Resistance: TH 75 Power Shielding 90 Propulsion Shielding 90 Utility Shielding 90 Point Defense Rating 240 Projectile Deflection 15 Weapon Cycling 20 Melee Speed Boost 50 Phase Shifting 25 Evasion (%) 110 Targeting Accuracy 30 Melee Accuracy 8 Target Analysis 8 Core Analysis 8 Armor Integrity Analysis 50 Recoil Reduction 4 Offensive Hacking 26 Defensive Hacking 24 Authchip Count 2 Item Schematics ----------------- Graviton Reactor | -8/Materials | Scanalyzed Combat Drone Bay | -7/Data Miner | Free Lgt. Regenerative Plating | -7/Data Miner | Free Cld. Cesium-ion Thruster | -7/Data Miner | Free Exp. Propulsion Shielding | -7/Data Miner | Free Ion Burst Cannon | -7/Data Miner | Free Hvy. Treads | -7/Data Miner | Free Mni. Drone Bay | -7/Data Miner | Free Disruptor Cannon | -7/Data Miner | Free Thermic Laser | -7/Data Miner | Free Enh. Gauss Cannon | -7/Data Miner | Free Exp. Core Analyzer | -6/Factory | Scanalyzed Tri-rail Accelerator | -6/Factory | Scanalyzed Cld. Field Propulsion Drive | -5/Factory | Scanalyzed Graphene Brace | -5/Factory | Scanalyzed Impulse Thruster Array | -4/Factory | Hacked Hyp. Railgun | -4/Factory | Scanalyzed Assault Drone Bay | -4/Zhirov | Free Exp. Heat Sink | -4/Zhirov | Free Exp. Optical Array | -4/Zhirov | Free Imp. Arc Thrower | -4/Zhirov | Free Nanosword | -3/Quarantine | Archive Com. Mass Driver | -3/Quarantine | Archive Enh. Biometal Leg | -3/Quarantine | Archive Prc. Phase Gun | -3/Quarantine | Archive Enh. Multireflex Exoskeleton | -3/Protoforge | Archive Coolant Network | -3/Protoforge | Archive Exp. Cooling System | -3/Protoforge | Archive Spectral Analyzer | -3/Protoforge | Archive Adv. Plasma Rifle | -3/Protoforge | Archive Adv. EM Disruption Field | -3/Protoforge | Archive Adv. Quantum Shading Machine | -2/Testing | Scanalyzed Hds. Centrium Wheel | -2/Testing | Archive Imp. Matter Neutralizer | -2/Testing | Archive Robot Schematics ------------------ M-14 Sweeper | -7/Data Miner | Free H-55 Commando | -7/Data Miner | Free S-27 Virus | -7/Data Miner | Free R-10 Processor | -7/Data Miner | Free E-15 Imp | -7/Data Miner | Free B-48 Gladiator | -7/Data Miner | Free L-41 Fighter | -7/Data Miner | Free R-06 Scavenger | -3/Quarantine | Archive A-15 Conveyor | -3/Quarantine | Archive O-32 Director | -3/Protoforge | Archive A-02 Transporter | -3/Protoforge | Archive Y-64 Sentinel | -3/Protoforge | Archive K-01 Serf | -2/Testing | Archive D-83 Annihilator | -2/Testing | Archive T-07 Excavator | -1/Access | Archive M-22 Extractor | -1/Access | Archive M-30 Cleanser | -1/Access | Archive M-13 Machinist | -1/Access | Archive M-28 Smith | -1/Access | Archive M-36 Artificer | -1/Access | Archive O-16 Technician | -1/Access | Archive O-24 Administrator | -1/Access | Archive W-16 Scout | -1/Access | Archive W-25 Informer | -1/Access | Archive W-44 Eye | -1/Access | Archive S-10 Pest | -1/Access | Archive S-43 Plague | -1/Access | Archive G-34 Mercenary | -1/Access | Archive G-47 Trooper | -1/Access | Archive G-50 Soldier | -1/Access | Archive G-67 Veteran | -1/Access | Archive G-73 Enforcer | -1/Access | Archive B-36 Bruiser | -1/Access | Archive B-60 Warrior | -1/Access | Archive B-74 Champion | -1/Access | Archive L-31 Rogue | -1/Access | Archive L-61 Swordsman | -1/Access | Archive Y-45 Defender | -1/Access | Archive Y-54 Guardian | -1/Access | Archive Y-72 Warden | -1/Access | Archive D-53 Grenadier | -1/Access | Archive D-63 Destroyer | -1/Access | Archive X-57 Shotgunner | -1/Access | Archive X-62 Marksman | -1/Access | Archive X-67 Chaingunner | -1/Access | Archive X-72 Disruptor | -1/Access | Archive X-77 Beamer | -1/Access | Archive X-82 Rainmaker | -1/Access | Archive X-87 Electro | -1/Access | Archive H-66 Slayer | -1/Access | Archive H-77 Assassin | -1/Access | Archive H-88 Terminator | -1/Access | Archive P-60 Hacker | -1/Access | Archive P-70 Sage | -1/Access | Archive P-80 Master | -1/Access | Archive Fabricated ------------ Micro-nuke Launcher | x1 | -7/Factory | Preloaded Nuclear Pulse Array | x1 | -7/Factory | Preloaded Graviton Reactor | x1 | -6/Factory | Authchip Cld. Cesium-ion Thruster | x1 | -5/Factory | Authchip Graviton Reactor | x1 | -5/Factory | Authchip Repaired ---------- Graviton Reactor | 31% | -8/Materials Tri-rail Accelerator | 20% | -7/Factory | Broken Graviton Reactor | 30% | -6/Factory Graviton Reactor | 99% | -4/Factory | Broken Studied --------- Spread Laser | -9/Materials | Hacked Imp. Ion Engine | -9/Materials | Hacked Lgt. Treads | -9/Materials | Hacked Mni. Grenade Launcher | -9/Materials | Hacked Katana | -8/Materials | Hacked Datajack | -6/Factory | Hacked Nuclear Pulse Array | -5/Factory | Hacked Impulse Thruster Array | -4/Factory | Hacked Hyp. Railgun | -4/Factory | Hacked Mic. Antimatter Reactor | -4/Factory | Hacked Alien Tech Used ----------------- Integrated Reactor Dimensional Node Initializer Sigix Broadsword Transdimensional Reconstructor High-powered Transdimensional Reconstructor Subatomic Replicator Achievements -------------- Guerrilla Style Warlord Forever! Challenges ------------ None Game ------ Seed ReflexProjectionTrident Manual? 0 Play Time 09:26:12 Cumulative 1088.4 hours Start 2026.01.09 @ 21:51:54 End 2026.01.11 @ 01:11:23 Sessions 3 Manual Loads 0 Difficulty Rogue Special Mode None Game No. 326 Rogue 324 Adventurer 2 Explorer 0 Win Type 7 Total 79 Types 21/18/18/1/1/1/14/2/1/2 Lore% 97 Gallery% 95 Achievement% 84 Wizard Run 0 Options --------- Layout 0 ASCII 0 Keyboard 1 Movement Numpad Keybinds 0 Fullscreen 1 Font 24/Smallcaps Map View 76x50 Zoom Use 0% Tactical HUD 1 Map Filters NONE Filters NONE Steam 1 RUN: fd296fb9-71c2-4c94-a2fe-e0763f1a5994